Workbook

Sheet Obsah
B1: STRUKTURA SEŠITU
B3: List | C3: Obsah | D3: Vysvětlení
B4: KOEF | C4: 1) předpoklady: | D4: míra pravděpodobnosti - stanovená jako historický nebo očekávaný počet pojistných plnění na celkový počet smluv
D5: claims ratio - škodní poměr neboli výše škod na zaslouženém pojistném
C6: 2) koeficienty pro výpočet pojistného a zajsitného | D6: PREMIUM - sazba podle které se počítá pojistné
D7: RE_PREMIUM - pojistná sazba podle zajistitele
D8: coef… - sazba zajsititele pro výpočet sazby RE_PREMIUM
C9: 3)koeficienty pro výpočet zisku zajistitele | D9: Reinsurance commission=provize od zajistitele
D10: Profit commission=zisk od zajistitele
D11: Reinsurance expenses alfa=výdaje zajistitele
D12: CoC-cost of capital=náklady na kapitál
B13: CALC | C13: Pojistná plnění | D13: hodnoty škod
C14: Pojistný kmen | D14: pojistné částky, které byly nasimulovány podle vzorce z listu SIMpor
C15: Gross required capital | D15: hrubý požadovaný kapitál - požadovaný kapitál před zajištěním
C16: Net required capital | D16: čistý požadovaný kapitál - požadovaný kapitál po zajištění, který se mění podle výše vlastního vrubu
C17: PREMIUM | D17: pojistné počítané dle sazby z listu KOEF - PREMIUM
C18: RE_PREMIUM | D18: pojistné počítané dle sazby z listu KOEF - RE_PREMIUM
C19: Pojistovna | D19: pojistné, které odpovídá zajištěné části
C20: RE | D20: pojistné, které odpovídá zajištěné části podle koeficientu zajistitele
C21: Reinsurers profit | D21: zisk zajistitele
C22: RIEVA | D22: výsledná hodnota pro zjištění optimálního vlastního vrubu
C23: Změny v počtu poj. plnění | D23: optimální vlastní vrub a RIEVA při různém počtu pojistných plnění
B24: SIMpor | C24: Simulace portfolia | D24: Výsledky optimálního vlasntího vrubu a RIEVA při rúzném pojistnm kmeni, výsledky získány z listu CALC

Sheet KOEF
B5: Predpoklady (urcene z historii)
B6: CLAIMS RATIO (CR) | C6: 0.3
B7: pravdepodobnost skody (pi) | C7: 0.001
B9: CR = (pi * SAR)/Premium
B10: the size of the claim
B27: PREMIUM - celkove pojistne prijate pojistovnou (tady su pouzite 100% sazby na vypocet pojistneho) | I27: v nasom pripade je sazba | L27: =CALC!R3/CALC!D3 -> 0.003333333333
B28: RE_PREMIUM - pojistne spoctne so sazbami zajistitela (45%) | L28: =L27*0.45 -> 0.0015
B29: coef RE_RATES/INSURANCE_RATES (je dany v zajistnej smluve) | C29: 0.45
B32: Reinsurance Commission: | C32: 0
B33: Profit Commission: | C33: 0.6
B34: Reinsurer's expenses alfa: | C34: 0.1
B35: CoC: | C35: 0.06

Sheet CALC
A1: Portfolio | B1: =MIN(14000000,(300000/(1-RAND())^(0.3))-200000) -> 269573.9567 | F1: pocet smluv | H1: Gross reqired capital | M1: Net required capital | O1: VV= | P1: 3200000 | U1: PREMIUM odpovedajuce zajistenej casti
F2: =COUNTIF(D5:D80000,">0") -> 66051 | H2: ES | I2: VarS | J2: E(S-ES)^3 | K2: u | M2: ES | N2: VarS | O2: E(S-ES)^3 | P2: u | R2: PREMIUM | S2: RE_PREMIUM | U2: Pojistovna | V2: RE | Y2: Reinsurer's Profit | AA2: RIEVA
D3: =SUM(D5:D70000) -> 1.814512614e+10 | F3: stredna hodnota pocetu skod | H3: =SUM(H5:H70000) -> 18145126.14 | I3: =SUM(I5:I70000) -> 1.161374299e+13 | J3: =SUM(J5:J70000) -> 2.859774029e+19 | K3: =SQRT(I3)*(NORMINV(0.995,0,1)+J3/I3^(3/2)/6*(NORMINV(0.995,0,1)^2-1)) -> 11090720.17 | M3: =SUM(M5:M70000) -> 17982001.26 | N3: =SUM(N5:N70000) -> 9.854760635e+12 | O3: =SUM(O5:O70000) -> 1.202751861e+19 | P3: =SQRT(N3)*(NORMINV(0.995,0,1)+O3/N3^(3/2)/6*(NORMINV(0.995,0,1)^2-1)) -> 9232330.065 | R3: =SUM(R5:R70000) -> 60483753.81 | S3: =SUM(S5:S70000) -> 27217689.21 | U3: =SUM(U5:U70000) -> 543749.6081 | V3: =SUM(V5:V70000) -> 244687.3236 | Y3: =(V3*(1-KOEF!C32)-U3*KOEF!C6)-KOEF!C33*(V3*(1-KOEF!C32)-U3*KOEF!C6-V3*KOEF!C34) -> 47306.2159 | AA3: =-Y3+(K3-P3)*KOEF!C35 -> 64197.19023
B4: Skody (CZK) | D4: pojistne castky na smluvach v portfoliu | F4: =F2*KOEF!C7 -> 66.051 | K4: =SQRT(I3)*(NORMINV(0.95,0,1)+J3/I3^(3/2)/6*(NORMINV(0.95,0,1)^2-1)) -> 6305443.654
B5: 100000 | D5: 118160.937 | H5: =D5*KOEF!$C$7 -> 118.160937 | I5: =D5^2*(KOEF!$C$7*(1-KOEF!$C$7)) -> 13948045.03 | J5: =D5^3*(KOEF!$C$7-3*KOEF!$C$7^2+2*KOEF!$C$7^3) -> 1.644817841e+12 | L5: =MIN(D5,$P$1) -> 118160.937 | M5: =L5*KOEF!$C$7 -> 118.160937 | N5: =L5^2*(KOEF!$C$7*(1-KOEF!$C$7)) -> 13948045.03 | O5: =L5^3*(KOEF!$C$7-3*KOEF!$C$7^2+2*KOEF!$C$7^3) -> 1.644817841e+12 | R5: =D5*KOEF!$C$7/KOEF!$C$6 -> 393.86979 | S5: =D5*KOEF!$L$28 -> 177.2414055 | U5: =R5*MAX((D5-$P$1),0)/D5 -> 0 | V5: =S5*MAX((D5-$P$1),0)/D5 -> 0 | AA5: cil je najit VV ktore maximalizuje RIEVA
B6: 100000 | D6: 169437.467 | H6: =D6*KOEF!$C$7 -> 169.437467 | I6: =D6^2*(KOEF!$C$7*(1-KOEF!$C$7)) -> 28680346.16 | J6: =D6^3*(KOEF!$C$7-3*KOEF!$C$7^2+2*KOEF!$C$7^3) -> 4.849806155e+12 | L6: =MIN(D6,$P$1) -> 169437.467 | M6: =L6*KOEF!$C$7 -> 169.437467 | N6: =L6^2*(KOEF!$C$7*(1-KOEF!$C$7)) -> 28680346.16 | O6: =L6^3*(KOEF!$C$7-3*KOEF!$C$7^2+2*KOEF!$C$7^3) -> 4.849806155e+12 | R6: =D6*KOEF!$C$7/KOEF!$C$6 -> 564.7915566 | S6: =D6*KOEF!$L$28 -> 254.1562005 | U6: =R6*MAX((D6-$P$1),0)/D6 -> 0 | V6: =S6*MAX((D6-$P$1),0)/D6 -> 0
B7: 100000 | D7: 192996.4565 | H7: =D7*KOEF!$C$7 -> 192.9964565 | I7: =D7^2*(KOEF!$C$7*(1-KOEF!$C$7)) -> 37210384.58 | J7: =D7^3*(KOEF!$C$7-3*KOEF!$C$7^2+2*KOEF!$C$7^3) -> 7.167109423e+12 | L7: 192996.4565 | M7: =L7*KOEF!$C$7 -> 192.9964565 | N7: =L7^2*(KOEF!$C$7*(1-KOEF!$C$7)) -> 37210384.58 | O7: =L7^3*(KOEF!$C$7-3*KOEF!$C$7^2+2*KOEF!$C$7^3) -> 7.167109423e+12 | R7: =D7*KOEF!$C$7/KOEF!$C$6 -> 643.3215216 | S7: =D7*KOEF!$L$28 -> 289.4946847 | U7: 0 | V7: 0 | Y7: VV
B8: 100000 | D8: 156431.4642 | H8: =D8*KOEF!$C$7 -> 156.4314642 | I8: =D8^2*(KOEF!$C$7*(1-KOEF!$C$7)) -> 24446332.18 | J8: =D8^3*(KOEF!$C$7-3*KOEF!$C$7^2+2*KOEF!$C$7^3) -> 3.816527185e+12 | L8: 156431.4642 | M8: =L8*KOEF!$C$7 -> 156.4314642 | N8: =L8^2*(KOEF!$C$7*(1-KOEF!$C$7)) -> 24446332.18 | O8: =L8^3*(KOEF!$C$7-3*KOEF!$C$7^2+2*KOEF!$C$7^3) -> 3.816527185e+12 | R8: =D8*KOEF!$C$7/KOEF!$C$6 -> 521.4382139 | S8: =D8*KOEF!$L$28 -> 234.6471962 | U8: 0 | V8: 0 | Y8: 1000000
B9: 100000 | D9: 114482.1284 | H9: =D9*KOEF!$C$7 -> 114.4821284 | I9: =D9^2*(KOEF!$C$7*(1-KOEF!$C$7)) -> 13093051.56 | J9: =D9^3*(KOEF!$C$7-3*KOEF!$C$7^2+2*KOEF!$C$7^3) -> 1.495922569e+12 | L9: 114482.1284 | M9: =L9*KOEF!$C$7 -> 114.4821284 | N9: =L9^2*(KOEF!$C$7*(1-KOEF!$C$7)) -> 13093051.56 | O9: =L9^3*(KOEF!$C$7-3*KOEF!$C$7^2+2*KOEF!$C$7^3) -> 1.495922569e+12 | R9: =D9*KOEF!$C$7/KOEF!$C$6 -> 381.6070946 | S9: =D9*KOEF!$L$28 -> 171.7231926 | U9: 0 | V9: 0 | Y9: 1100000 | AB9: EVAb | AC9: =($R$3-K3)-K3*KOEF!$C$35 -> 48727590.43
B10: 100000 | D10: 132863.0802 | H10: =D10*KOEF!$C$7 -> 132.8630802 | I10: =D10^2*(KOEF!$C$7*(1-KOEF!$C$7)) -> 17634945.49 | J10: =D10^3*(KOEF!$C$7-3*KOEF!$C$7^2+2*KOEF!$C$7^3) -> 2.338347111e+12 | L10: 132863.0802 | M10: =L10*KOEF!$C$7 -> 132.8630802 | N10: =L10^2*(KOEF!$C$7*(1-KOEF!$C$7)) -> 17634945.49 | O10: =L10^3*(KOEF!$C$7-3*KOEF!$C$7^2+2*KOEF!$C$7^3) -> 2.338347111e+12 | R10: =D10*KOEF!$C$7/KOEF!$C$6 -> 442.8769341 | S10: =D10*KOEF!$L$28 -> 199.2946203 | U10: 0 | V10: 0 | Y10: 1200000 | AB10: EVAbz | AC10: =($R$3-K3-Y3)-P3*KOEF!$C$35 -> 48791787.62
B11: 100000 | D11: 194572.1557 | H11: =D11*KOEF!$C$7 -> 194.5721557 | I11: =D11^2*(KOEF!$C$7*(1-KOEF!$C$7)) -> 37820465.46 | J11: =D11^3*(KOEF!$C$7-3*KOEF!$C$7^2+2*KOEF!$C$7^3) -> 7.344091875e+12 | L11: 194572.1557 | M11: =L11*KOEF!$C$7 -> 194.5721557 | N11: =L11^2*(KOEF!$C$7*(1-KOEF!$C$7)) -> 37820465.46 | O11: =L11^3*(KOEF!$C$7-3*KOEF!$C$7^2+2*KOEF!$C$7^3) -> 7.344091875e+12 | R11: =D11*KOEF!$C$7/KOEF!$C$6 -> 648.5738524 | S11: =D11*KOEF!$L$28 -> 291.8582336 | U11: 0 | V11: 0 | Y11: 1300000
B12: 100000 | D12: 228533.4486 | H12: =D12*KOEF!$C$7 -> 228.5334486 | I12: =D12^2*(KOEF!$C$7*(1-KOEF!$C$7)) -> 52175309.61 | J12: =D12^3*(KOEF!$C$7-3*KOEF!$C$7^2+2*KOEF!$C$7^3) -> 1.189995583e+13 | L12: 228533.4486 | M12: =L12*KOEF!$C$7 -> 228.5334486 | N12: =L12^2*(KOEF!$C$7*(1-KOEF!$C$7)) -> 52175309.61 | O12: =L12^3*(KOEF!$C$7-3*KOEF!$C$7^2+2*KOEF!$C$7^3) -> 1.189995583e+13 | R12: =D12*KOEF!$C$7/KOEF!$C$6 -> 761.7781621 | S12: =D12*KOEF!$L$28 -> 342.800173 | U12: 0 | V12: 0 | Y12: 1400000
B13: 100000 | D13: 418240.8733 | H13: =D13*KOEF!$C$7 -> 418.2408733 | I13: =D13^2*(KOEF!$C$7*(1-KOEF!$C$7)) -> 174750502.7 | J13: =D13^3*(KOEF!$C$7-3*KOEF!$C$7^2+2*KOEF!$C$7^3) -> 7.294162724e+13 | L13: 418240.8733 | M13: =L13*KOEF!$C$7 -> 418.2408733 | N13: =L13^2*(KOEF!$C$7*(1-KOEF!$C$7)) -> 174750502.7 | O13: =L13^3*(KOEF!$C$7-3*KOEF!$C$7^2+2*KOEF!$C$7^3) -> 7.294162724e+13 | R13: =D13*KOEF!$C$7/KOEF!$C$6 -> 1394.136244 | S13: =D13*KOEF!$L$28 -> 627.36131 | U13: 0 | V13: 0 | Y13: 1500000
B14: 100000 | D14: 295898.5208 | H14: =D14*KOEF!$C$7 -> 295.8985208 | I14: =D14^2*(KOEF!$C$7*(1-KOEF!$C$7)) -> 87468378.7 | J14: =D14^3*(KOEF!$C$7-3*KOEF!$C$7^2+2*KOEF!$C$7^3) -> 2.583000035e+13 | L14: 295898.5208 | M14: =L14*KOEF!$C$7 -> 295.8985208 | N14: =L14^2*(KOEF!$C$7*(1-KOEF!$C$7)) -> 87468378.7 | O14: =L14^3*(KOEF!$C$7-3*KOEF!$C$7^2+2*KOEF!$C$7^3) -> 2.583000035e+13 | R14: =D14*KOEF!$C$7/KOEF!$C$6 -> 986.3284028 | S14: =D14*KOEF!$L$28 -> 443.8477813 | U14: 0 | V14: 0 | Y14: 1600000
B15: 100000 | D15: 589620.9071 | H15: =D15*KOEF!$C$7 -> 589.6209071 | I15: =D15^2*(KOEF!$C$7*(1-KOEF!$C$7)) -> 347305161.3 | J15: =D15^3*(KOEF!$C$7-3*KOEF!$C$7^2+2*KOEF!$C$7^3) -> 2.043688275e+14 | L15: 589620.9071 | M15: =L15*KOEF!$C$7 -> 589.6209071 | N15: =L15^2*(KOEF!$C$7*(1-KOEF!$C$7)) -> 347305161.3 | O15: =L15^3*(KOEF!$C$7-3*KOEF!$C$7^2+2*KOEF!$C$7^3) -> 2.043688275e+14 | R15: =D15*KOEF!$C$7/KOEF!$C$6 -> 1965.403024 | S15: =D15*KOEF!$L$28 -> 884.4313607 | U15: 0 | V15: 0 | Y15: 1700000
B16: 100000 | D16: 117253.9973 | H16: =D16*KOEF!$C$7 -> 117.2539973 | I16: =D16^2*(KOEF!$C$7*(1-KOEF!$C$7)) -> 13734751.39 | J16: =D16^3*(KOEF!$C$7-3*KOEF!$C$7^2+2*KOEF!$C$7^3) -> 1.607233593e+12 | L16: 117253.9973 | M16: =L16*KOEF!$C$7 -> 117.2539973 | N16: =L16^2*(KOEF!$C$7*(1-KOEF!$C$7)) -> 13734751.39 | O16: =L16^3*(KOEF!$C$7-3*KOEF!$C$7^2+2*KOEF!$C$7^3) -> 1.607233593e+12 | R16: =D16*KOEF!$C$7/KOEF!$C$6 -> 390.8466577 | S16: =D16*KOEF!$L$28 -> 175.880996 | U16: 0 | V16: 0 | Y16: 1800000
B17: 100000 | D17: 131735.2048 | H17: =D17*KOEF!$C$7 -> 131.7352048 | I17: =D17^2*(KOEF!$C$7*(1-KOEF!$C$7)) -> 17336810.01 | J17: =D17^3*(KOEF!$C$7-3*KOEF!$C$7^2+2*KOEF!$C$7^3) -> 2.27930048e+12 | L17: 131735.2048 | M17: =L17*KOEF!$C$7 -> 131.7352048 | N17: =L17^2*(KOEF!$C$7*(1-KOEF!$C$7)) -> 17336810.01 | O17: =L17^3*(KOEF!$C$7-3*KOEF!$C$7^2+2*KOEF!$C$7^3) -> 2.27930048e+12 | R17: =D17*KOEF!$C$7/KOEF!$C$6 -> 439.1173492 | S17: =D17*KOEF!$L$28 -> 197.6028071 | U17: 0 | V17: 0 | Y17: 1900000
B18: 100000 | D18: 540216.3241 | H18: =D18*KOEF!$C$7 -> 540.2163241 | I18: =D18^2*(KOEF!$C$7*(1-KOEF!$C$7)) -> 291541843.2 | J18: =D18^3*(KOEF!$C$7-3*KOEF!$C$7^2+2*KOEF!$C$7^3) -> 1.571806715e+14 | L18: 540216.3241 | M18: =L18*KOEF!$C$7 -> 540.2163241 | N18: =L18^2*(KOEF!$C$7*(1-KOEF!$C$7)) -> 291541843.2 | O18: =L18^3*(KOEF!$C$7-3*KOEF!$C$7^2+2*KOEF!$C$7^3) -> 1.571806715e+14 | R18: =D18*KOEF!$C$7/KOEF!$C$6 -> 1800.72108 | S18: =D18*KOEF!$L$28 -> 810.3244862 | U18: 0 | V18: 0 | Y18: 2000000
B19: 100000 | D19: 112267.6866 | H19: =D19*KOEF!$C$7 -> 112.2676866 | I19: =D19^2*(KOEF!$C$7*(1-KOEF!$C$7)) -> 12591429.41 | J19: =D19^3*(KOEF!$C$7-3*KOEF!$C$7^2+2*KOEF!$C$7^3) -> 1.41078343e+12 | L19: 112267.6866 | M19: =L19*KOEF!$C$7 -> 112.2676866 | N19: =L19^2*(KOEF!$C$7*(1-KOEF!$C$7)) -> 12591429.41 | O19: =L19^3*(KOEF!$C$7-3*KOEF!$C$7^2+2*KOEF!$C$7^3) -> 1.41078343e+12 | R19: =D19*KOEF!$C$7/KOEF!$C$6 -> 374.2256219 | S19: =D19*KOEF!$L$28 -> 168.4015298 | U19: 0 | V19: 0 | Y19: 2100000
B20: 100000 | D20: 118152.0803 | H20: =D20*KOEF!$C$7 -> 118.1520803 | I20: =D20^2*(KOEF!$C$7*(1-KOEF!$C$7)) -> 13945954.17 | J20: =D20^3*(KOEF!$C$7-3*KOEF!$C$7^2+2*KOEF!$C$7^3) -> 1.64444801e+12 | L20: 118152.0803 | M20: =L20*KOEF!$C$7 -> 118.1520803 | N20: =L20^2*(KOEF!$C$7*(1-KOEF!$C$7)) -> 13945954.17 | O20: =L20^3*(KOEF!$C$7-3*KOEF!$C$7^2+2*KOEF!$C$7^3) -> 1.64444801e+12 | R20: =D20*KOEF!$C$7/KOEF!$C$6 -> 393.8402677 | S20: =D20*KOEF!$L$28 -> 177.2281205 | U20: 0 | V20: 0 | Y20: 2200000
B21: 101000 | D21: 139266.4329 | H21: =D21*KOEF!$C$7 -> 139.2664329 | I21: =D21^2*(KOEF!$C$7*(1-KOEF!$C$7)) -> 19375744.18 | J21: =D21^3*(KOEF!$C$7-3*KOEF!$C$7^2+2*KOEF!$C$7^3) -> 2.692993994e+12 | L21: 139266.4329 | M21: =L21*KOEF!$C$7 -> 139.2664329 | N21: =L21^2*(KOEF!$C$7*(1-KOEF!$C$7)) -> 19375744.18 | O21: =L21^3*(KOEF!$C$7-3*KOEF!$C$7^2+2*KOEF!$C$7^3) -> 2.692993994e+12 | R21: =D21*KOEF!$C$7/KOEF!$C$6 -> 464.2214428 | S21: =D21*KOEF!$L$28 -> 208.8996493 | U21: 0 | V21: 0 | Y21: 2300000
B22: 106082 | D22: 261734.0246 | H22: =D22*KOEF!$C$7 -> 261.7340246 | I22: =D22^2*(KOEF!$C$7*(1-KOEF!$C$7)) -> 68436194.92 | J22: =D22^3*(KOEF!$C$7-3*KOEF!$C$7^2+2*KOEF!$C$7^3) -> 1.787625656e+13 | L22: 261734.0246 | M22: =L22*KOEF!$C$7 -> 261.7340246 | N22: =L22^2*(KOEF!$C$7*(1-KOEF!$C$7)) -> 68436194.92 | O22: =L22^3*(KOEF!$C$7-3*KOEF!$C$7^2+2*KOEF!$C$7^3) -> 1.787625656e+13 | R22: =D22*KOEF!$C$7/KOEF!$C$6 -> 872.4467486 | S22: =D22*KOEF!$L$28 -> 392.6010369 | U22: 0 | V22: 0 | Y22: 2400000
B23: 108800 | D23: 138397.4416 | H23: =D23*KOEF!$C$7 -> 138.3974416 | I23: =D23^2*(KOEF!$C$7*(1-KOEF!$C$7)) -> 19134698 | J23: =D23^3*(KOEF!$C$7-3*KOEF!$C$7^2+2*KOEF!$C$7^3) -> 2.642896862e+12 | L23: 138397.4416 | M23: =L23*KOEF!$C$7 -> 138.3974416 | N23: =L23^2*(KOEF!$C$7*(1-KOEF!$C$7)) -> 19134698 | O23: =L23^3*(KOEF!$C$7-3*KOEF!$C$7^2+2*KOEF!$C$7^3) -> 2.642896862e+12 | R23: =D23*KOEF!$C$7/KOEF!$C$6 -> 461.3248054 | S23: =D23*KOEF!$L$28 -> 207.5961624 | U23: 0 | V23: 0 | Y23: 2500000
B24: 114000 | D24: 170147.2756 | H24: =D24*KOEF!$C$7 -> 170.1472756 | I24: =D24^2*(KOEF!$C$7*(1-KOEF!$C$7)) -> 28921145.31 | J24: =D24^3*(KOEF!$C$7-3*KOEF!$C$7^2+2*KOEF!$C$7^3) -> 4.911012374e+12 | L24: 170147.2756 | M24: =L24*KOEF!$C$7 -> 170.1472756 | N24: =L24^2*(KOEF!$C$7*(1-KOEF!$C$7)) -> 28921145.31 | O24: =L24^3*(KOEF!$C$7-3*KOEF!$C$7^2+2*KOEF!$C$7^3) -> 4.911012374e+12 | R24: =D24*KOEF!$C$7/KOEF!$C$6 -> 567.1575854 | S24: =D24*KOEF!$L$28 -> 255.2209134 | U24: 0 | V24: 0 | Y24: 2600000
B25: 122952 | D25: 179853.0653 | H25: =D25*KOEF!$C$7 -> 179.8530653 | I25: =D25^2*(KOEF!$C$7*(1-KOEF!$C$7)) -> 32314777.97 | J25: =D25^3*(KOEF!$C$7-3*KOEF!$C$7^2+2*KOEF!$C$7^3) -> 5.800288047e+12 | L25: 179853.0653 | M25: =L25*KOEF!$C$7 -> 179.8530653 | N25: =L25^2*(KOEF!$C$7*(1-KOEF!$C$7)) -> 32314777.97 | O25: =L25^3*(KOEF!$C$7-3*KOEF!$C$7^2+2*KOEF!$C$7^3) -> 5.800288047e+12 | R25: =D25*KOEF!$C$7/KOEF!$C$6 -> 599.5102176 | S25: =D25*KOEF!$L$28 -> 269.7795979 | U25: 0 | V25: 0 | Y25: 2700000
B26: 125000 | D26: 224198.7046 | H26: =D26*KOEF!$C$7 -> 224.1987046 | I26: =D26^2*(KOEF!$C$7*(1-KOEF!$C$7)) -> 50214794.08 | J26: =D26^3*(KOEF!$C$7-3*KOEF!$C$7^2+2*KOEF!$C$7^3) -> 1.12355756e+13 | L26: 224198.7046 | M26: =L26*KOEF!$C$7 -> 224.1987046 | N26: =L26^2*(KOEF!$C$7*(1-KOEF!$C$7)) -> 50214794.08 | O26: =L26^3*(KOEF!$C$7-3*KOEF!$C$7^2+2*KOEF!$C$7^3) -> 1.12355756e+13 | R26: =D26*KOEF!$C$7/KOEF!$C$6 -> 747.3290153 | S26: =D26*KOEF!$L$28 -> 336.2980569 | U26: 0 | V26: 0 | Y26: 2800000
B27: 127415 | D27: 267117.8786 | H27: =D27*KOEF!$C$7 -> 267.1178786 | I27: =D27^2*(KOEF!$C$7*(1-KOEF!$C$7)) -> 71280609.08 | J27: =D27^3*(KOEF!$C$7-3*KOEF!$C$7^2+2*KOEF!$C$7^3) -> 1.900224443e+13 | L27: 267117.8786 | M27: =L27*KOEF!$C$7 -> 267.1178786 | N27: =L27^2*(KOEF!$C$7*(1-KOEF!$C$7)) -> 71280609.08 | O27: =L27^3*(KOEF!$C$7-3*KOEF!$C$7^2+2*KOEF!$C$7^3) -> 1.900224443e+13 | R27: =D27*KOEF!$C$7/KOEF!$C$6 -> 890.3929285 | S27: =D27*KOEF!$L$28 -> 400.6768178 | U27: 0 | V27: 0 | Y27: 2900000
B28: 128319 | D28: 221932.3066 | H28: =D28*KOEF!$C$7 -> 221.9323066 | I28: =D28^2*(KOEF!$C$7*(1-KOEF!$C$7)) -> 49204694.77 | J28: =D28^3*(KOEF!$C$7-3*KOEF!$C$7^2+2*KOEF!$C$7^3) -> 1.089827118e+13 | L28: 221932.3066 | M28: =L28*KOEF!$C$7 -> 221.9323066 | N28: =L28^2*(KOEF!$C$7*(1-KOEF!$C$7)) -> 49204694.77 | O28: =L28^3*(KOEF!$C$7-3*KOEF!$C$7^2+2*KOEF!$C$7^3) -> 1.089827118e+13 | R28: =D28*KOEF!$C$7/KOEF!$C$6 -> 739.7743554 | S28: =D28*KOEF!$L$28 -> 332.8984599 | U28: 0 | V28: 0 | Y28: 3000000
B29: 133423 | D29: 204298.2457 | H29: =D29*KOEF!$C$7 -> 204.2982457 | I29: =D29^2*(KOEF!$C$7*(1-KOEF!$C$7)) -> 41696035.44 | J29: =D29^3*(KOEF!$C$7-3*KOEF!$C$7^2+2*KOEF!$C$7^3) -> 8.50139004e+12 | L29: 204298.2457 | M29: =L29*KOEF!$C$7 -> 204.2982457 | N29: =L29^2*(KOEF!$C$7*(1-KOEF!$C$7)) -> 41696035.44 | O29: =L29^3*(KOEF!$C$7-3*KOEF!$C$7^2+2*KOEF!$C$7^3) -> 8.50139004e+12 | R29: =D29*KOEF!$C$7/KOEF!$C$6 -> 680.9941525 | S29: =D29*KOEF!$L$28 -> 306.4473686 | U29: 0 | V29: 0 | Y29: 3100000
B30: 134526 | D30: 199660.7934 | H30: =D30*KOEF!$C$7 -> 199.6607934 | I30: =D30^2*(KOEF!$C$7*(1-KOEF!$C$7)) -> 39824567.99 | J30: =D30^3*(KOEF!$C$7-3*KOEF!$C$7^2+2*KOEF!$C$7^3) -> 7.935502032e+12 | L30: 199660.7934 | M30: =L30*KOEF!$C$7 -> 199.6607934 | N30: =L30^2*(KOEF!$C$7*(1-KOEF!$C$7)) -> 39824567.99 | O30: =L30^3*(KOEF!$C$7-3*KOEF!$C$7^2+2*KOEF!$C$7^3) -> 7.935502032e+12 | R30: =D30*KOEF!$C$7/KOEF!$C$6 -> 665.535978 | S30: =D30*KOEF!$L$28 -> 299.4911901 | U30: 0 | V30: 0 | Y30: 3200000
B31: 139747 | D31: 213215.5104 | H31: =D31*KOEF!$C$7 -> 213.2155104 | I31: =D31^2*(KOEF!$C$7*(1-KOEF!$C$7)) -> 45415393 | J31: =D31^3*(KOEF!$C$7-3*KOEF!$C$7^2+2*KOEF!$C$7^3) -> 9.663899665e+12 | L31: 213215.5104 | M31: =L31*KOEF!$C$7 -> 213.2155104 | N31: =L31^2*(KOEF!$C$7*(1-KOEF!$C$7)) -> 45415393 | O31: =L31^3*(KOEF!$C$7-3*KOEF!$C$7^2+2*KOEF!$C$7^3) -> 9.663899665e+12 | R31: =D31*KOEF!$C$7/KOEF!$C$6 -> 710.7183679 | S31: =D31*KOEF!$L$28 -> 319.8232655 | U31: 0 | V31: 0 | Y31: 3300000
B32: 150000 | D32: 137841.752 | H32: =D32*KOEF!$C$7 -> 137.841752 | I32: =D32^2*(KOEF!$C$7*(1-KOEF!$C$7)) -> 18981348.26 | J32: =D32^3*(KOEF!$C$7-3*KOEF!$C$7^2+2*KOEF!$C$7^3) -> 2.611189455e+12 | L32: 137841.752 | M32: =L32*KOEF!$C$7 -> 137.841752 | N32: =L32^2*(KOEF!$C$7*(1-KOEF!$C$7)) -> 18981348.26 | O32: =L32^3*(KOEF!$C$7-3*KOEF!$C$7^2+2*KOEF!$C$7^3) -> 2.611189455e+12 | R32: =D32*KOEF!$C$7/KOEF!$C$6 -> 459.4725068 | S32: =D32*KOEF!$L$28 -> 206.7626281 | U32: 0 | V32: 0 | Y32: 3400000
B33: 150000 | D33: 131378.6696 | H33: =D33*KOEF!$C$7 -> 131.3786696 | I33: =D33^2*(KOEF!$C$7*(1-KOEF!$C$7)) -> 17243094.47 | J33: =D33^3*(KOEF!$C$7-3*KOEF!$C$7^2+2*KOEF!$C$7^3) -> 2.260844061e+12 | L33: 131378.6696 | M33: =L33*KOEF!$C$7 -> 131.3786696 | N33: =L33^2*(KOEF!$C$7*(1-KOEF!$C$7)) -> 17243094.47 | O33: =L33^3*(KOEF!$C$7-3*KOEF!$C$7^2+2*KOEF!$C$7^3) -> 2.260844061e+12 | R33: =D33*KOEF!$C$7/KOEF!$C$6 -> 437.9288986 | S33: =D33*KOEF!$L$28 -> 197.0680044 | U33: 0 | V33: 0 | Y33: 3500000
B34: 152043 | D34: 226561.3497 | H34: =D34*KOEF!$C$7 -> 226.5613497 | I34: =D34^2*(KOEF!$C$7*(1-KOEF!$C$7)) -> 51278715.11 | J34: =D34^3*(KOEF!$C$7-3*KOEF!$C$7^2+2*KOEF!$C$7^3) -> 1.159453935e+13 | L34: 226561.3497 | M34: =L34*KOEF!$C$7 -> 226.5613497 | N34: =L34^2*(KOEF!$C$7*(1-KOEF!$C$7)) -> 51278715.11 | O34: =L34^3*(KOEF!$C$7-3*KOEF!$C$7^2+2*KOEF!$C$7^3) -> 1.159453935e+13 | R34: =D34*KOEF!$C$7/KOEF!$C$6 -> 755.2044988 | S34: =D34*KOEF!$L$28 -> 339.8420245 | U34: 0 | V34: 0 | Y34: 3600000
B35: 163175 | D35: 837051.1769 | H35: =D35*KOEF!$C$7 -> 837.0511769 | I35: =D35^2*(KOEF!$C$7*(1-KOEF!$C$7)) -> 699954018.1 | J35: =D35^3*(KOEF!$C$7-3*KOEF!$C$7^2+2*KOEF!$C$7^3) -> 584725539907811 | L35: 837051.1769 | M35: =L35*KOEF!$C$7 -> 837.0511769 | N35: =L35^2*(KOEF!$C$7*(1-KOEF!$C$7)) -> 699954018.1 | O35: =L35^3*(KOEF!$C$7-3*KOEF!$C$7^2+2*KOEF!$C$7^3) -> 584725539907811 | R35: =D35*KOEF!$C$7/KOEF!$C$6 -> 2790.17059 | S35: =D35*KOEF!$L$28 -> 1255.576765 | U35: 0 | V35: 0 | Y35: 3700000
B36: 163175 | D36: 153102.1574 | H36: =D36*KOEF!$C$7 -> 153.1021574 | I36: =D36^2*(KOEF!$C$7*(1-KOEF!$C$7)) -> 23416830.33 | J36: =D36^3*(KOEF!$C$7-3*KOEF!$C$7^2+2*KOEF!$C$7^3) -> 3.57799691e+12 | L36: 153102.1574 | M36: =L36*KOEF!$C$7 -> 153.1021574 | N36: =L36^2*(KOEF!$C$7*(1-KOEF!$C$7)) -> 23416830.33 | O36: =L36^3*(KOEF!$C$7-3*KOEF!$C$7^2+2*KOEF!$C$7^3) -> 3.57799691e+12 | R36: =D36*KOEF!$C$7/KOEF!$C$6 -> 510.3405247 | S36: =D36*KOEF!$L$28 -> 229.6532361 | U36: 0 | V36: 0 | Y36: 3800000
B37: 200000 | D37: 162021.5933 | H37: =D37*KOEF!$C$7 -> 162.0215933 | I37: =D37^2*(KOEF!$C$7*(1-KOEF!$C$7)) -> 26224745.71 | J37: =D37^3*(KOEF!$C$7-3*KOEF!$C$7^2+2*KOEF!$C$7^3) -> 4.240477134e+12 | L37: 162021.5933 | M37: =L37*KOEF!$C$7 -> 162.0215933 | N37: =L37^2*(KOEF!$C$7*(1-KOEF!$C$7)) -> 26224745.71 | O37: =L37^3*(KOEF!$C$7-3*KOEF!$C$7^2+2*KOEF!$C$7^3) -> 4.240477134e+12 | R37: =D37*KOEF!$C$7/KOEF!$C$6 -> 540.0719778 | S37: =D37*KOEF!$L$28 -> 243.03239 | U37: 0 | V37: 0 | Y37: 3900000
B38: 200000 | D38: 243257.9254 | H38: =D38*KOEF!$C$7 -> 243.2579254 | I38: =D38^2*(KOEF!$C$7*(1-KOEF!$C$7)) -> 59115243.83 | J38: =D38^3*(KOEF!$C$7-3*KOEF!$C$7^2+2*KOEF!$C$7^3) -> 1.435149107e+13 | L38: 243257.9254 | M38: =L38*KOEF!$C$7 -> 243.2579254 | N38: =L38^2*(KOEF!$C$7*(1-KOEF!$C$7)) -> 59115243.83 | O38: =L38^3*(KOEF!$C$7-3*KOEF!$C$7^2+2*KOEF!$C$7^3) -> 1.435149107e+13 | R38: =D38*KOEF!$C$7/KOEF!$C$6 -> 810.8597512 | S38: =D38*KOEF!$L$28 -> 364.886888 | U38: 0 | V38: 0 | Y38: 4000000
B39: 200000 | D39: 140183.1554 | H39: =D39*KOEF!$C$7 -> 140.1831554 | I39: =D39^2*(KOEF!$C$7*(1-KOEF!$C$7)) -> 19631665.75 | J39: =D39^3*(KOEF!$C$7-3*KOEF!$C$7^2+2*KOEF!$C$7^3) -> 2.746524793e+12 | L39: 140183.1554 | M39: =L39*KOEF!$C$7 -> 140.1831554 | N39: =L39^2*(KOEF!$C$7*(1-KOEF!$C$7)) -> 19631665.75 | O39: =L39^3*(KOEF!$C$7-3*KOEF!$C$7^2+2*KOEF!$C$7^3) -> 2.746524793e+12 | R39: =D39*KOEF!$C$7/KOEF!$C$6 -> 467.2771847 | S39: =D39*KOEF!$L$28 -> 210.2747331 | U39: 0 | V39: 0 | Y39: 4100000
B40: 200000 | D40: 245583.6973 | H40: =D40*KOEF!$C$7 -> 245.5836973 | I40: =D40^2*(KOEF!$C$7*(1-KOEF!$C$7)) -> 60251041.04 | J40: =D40^3*(KOEF!$C$7-3*KOEF!$C$7^2+2*KOEF!$C$7^3) -> 1.476708008e+13 | L40: 245583.6973 | M40: =L40*KOEF!$C$7 -> 245.5836973 | N40: =L40^2*(KOEF!$C$7*(1-KOEF!$C$7)) -> 60251041.04 | O40: =L40^3*(KOEF!$C$7-3*KOEF!$C$7^2+2*KOEF!$C$7^3) -> 1.476708008e+13 | R40: =D40*KOEF!$C$7/KOEF!$C$6 -> 818.6123244 | S40: =D40*KOEF!$L$28 -> 368.375546 | U40: 0 | V40: 0 | Y40: 4200000
B41: 200000 | D41: 612287.6445 | H41: =D41*KOEF!$C$7 -> 612.2876445 | I41: =D41^2*(KOEF!$C$7*(1-KOEF!$C$7)) -> 374521263.4 | J41: =D41^3*(KOEF!$C$7-3*KOEF!$C$7^2+2*KOEF!$C$7^3) -> 2.288561127e+14 | L41: 612287.6445 | M41: =L41*KOEF!$C$7 -> 612.2876445 | N41: =L41^2*(KOEF!$C$7*(1-KOEF!$C$7)) -> 374521263.4 | O41: =L41^3*(KOEF!$C$7-3*KOEF!$C$7^2+2*KOEF!$C$7^3) -> 2.288561127e+14 | R41: =D41*KOEF!$C$7/KOEF!$C$6 -> 2040.958815 | S41: =D41*KOEF!$L$28 -> 918.4314667 | U41: 0 | V41: 0 | Y41: 4300000
B42: 200000 | D42: 103777.034 | H42: =D42*KOEF!$C$7 -> 103.777034 | I42: =D42^2*(KOEF!$C$7*(1-KOEF!$C$7)) -> 10758903.11 | J42: =D42^3*(KOEF!$C$7-3*KOEF!$C$7^2+2*KOEF!$C$7^3) -> 1.114293999e+12 | L42: 103777.034 | M42: =L42*KOEF!$C$7 -> 103.777034 | N42: =L42^2*(KOEF!$C$7*(1-KOEF!$C$7)) -> 10758903.11 | O42: =L42^3*(KOEF!$C$7-3*KOEF!$C$7^2+2*KOEF!$C$7^3) -> 1.114293999e+12 | R42: =D42*KOEF!$C$7/KOEF!$C$6 -> 345.9234466 | S42: =D42*KOEF!$L$28 -> 155.6655509 | U42: 0 | V42: 0 | Y42: 4400000
B43: 220000 | D43: 398569.1221 | H43: =D43*KOEF!$C$7 -> 398.5691221 | I43: =D43^2*(KOEF!$C$7*(1-KOEF!$C$7)) -> 158698487.8 | J43: =D43^3*(KOEF!$C$7-3*KOEF!$C$7^2+2*KOEF!$C$7^3) -> 6.312581232e+13 | L43: 398569.1221 | M43: =L43*KOEF!$C$7 -> 398.5691221 | N43: =L43^2*(KOEF!$C$7*(1-KOEF!$C$7)) -> 158698487.8 | O43: =L43^3*(KOEF!$C$7-3*KOEF!$C$7^2+2*KOEF!$C$7^3) -> 6.312581232e+13 | R43: =D43*KOEF!$C$7/KOEF!$C$6 -> 1328.56374 | S43: =D43*KOEF!$L$28 -> 597.8536832 | U43: 0 | V43: 0 | Y43: 4500000
B44: 221483 | D44: 181898.7176 | H44: =D44*KOEF!$C$7 -> 181.8987176 | I44: =D44^2*(KOEF!$C$7*(1-KOEF!$C$7)) -> 33054056.31 | J44: =D44^3*(KOEF!$C$7-3*KOEF!$C$7^2+2*KOEF!$C$7^3) -> 6.000465473e+12 | L44: 181898.7176 | M44: =L44*KOEF!$C$7 -> 181.8987176 | N44: =L44^2*(KOEF!$C$7*(1-KOEF!$C$7)) -> 33054056.31 | O44: =L44^3*(KOEF!$C$7-3*KOEF!$C$7^2+2*KOEF!$C$7^3) -> 6.000465473e+12 | R44: =D44*KOEF!$C$7/KOEF!$C$6 -> 606.3290586 | S44: =D44*KOEF!$L$28 -> 272.8480764 | U44: 0 | V44: 0 | Y44: 4600000
B45: 223082 | D45: 102421.9996 | H45: =D45*KOEF!$C$7 -> 102.4219996 | I45: =D45^2*(KOEF!$C$7*(1-KOEF!$C$7)) -> 10479775.74 | J45: =D45^3*(KOEF!$C$7-3*KOEF!$C$7^2+2*KOEF!$C$7^3) -> 1.071212868e+12 | L45: 102421.9996 | M45: =L45*KOEF!$C$7 -> 102.4219996 | N45: =L45^2*(KOEF!$C$7*(1-KOEF!$C$7)) -> 10479775.74 | O45: =L45^3*(KOEF!$C$7-3*KOEF!$C$7^2+2*KOEF!$C$7^3) -> 1.071212868e+12 | R45: =D45*KOEF!$C$7/KOEF!$C$6 -> 341.4066654 | S45: =D45*KOEF!$L$28 -> 153.6329994 | U45: 0 | V45: 0 | Y45: 4700000
B46: 227912 | D46: 117943.6427 | H46: =D46*KOEF!$C$7 -> 117.9436427 | I46: =D46^2*(KOEF!$C$7*(1-KOEF!$C$7)) -> 13896792.14 | J46: =D46^3*(KOEF!$C$7-3*KOEF!$C$7^2+2*KOEF!$C$7^3) -> 1.635760211e+12 | L46: 117943.6427 | M46: =L46*KOEF!$C$7 -> 117.9436427 | N46: =L46^2*(KOEF!$C$7*(1-KOEF!$C$7)) -> 13896792.14 | O46: =L46^3*(KOEF!$C$7-3*KOEF!$C$7^2+2*KOEF!$C$7^3) -> 1.635760211e+12 | R46: =D46*KOEF!$C$7/KOEF!$C$6 -> 393.1454756 | S46: =D46*KOEF!$L$28 -> 176.915464 | U46: 0 | V46: 0 | Y46: 4800000
B47: 250000 | D47: 360673.4769 | H47: =D47*KOEF!$C$7 -> 360.6734769 | I47: =D47^2*(KOEF!$C$7*(1-KOEF!$C$7)) -> 129955271.6 | J47: =D47^3*(KOEF!$C$7-3*KOEF!$C$7^2+2*KOEF!$C$7^3) -> 4.677767679e+13 | L47: 360673.4769 | M47: =L47*KOEF!$C$7 -> 360.6734769 | N47: =L47^2*(KOEF!$C$7*(1-KOEF!$C$7)) -> 129955271.6 | O47: =L47^3*(KOEF!$C$7-3*KOEF!$C$7^2+2*KOEF!$C$7^3) -> 4.677767679e+13 | R47: =D47*KOEF!$C$7/KOEF!$C$6 -> 1202.244923 | S47: =D47*KOEF!$L$28 -> 541.0102153 | U47: 0 | V47: 0 | Y47: 4900000
B48: 250000 | D48: 711167.9001 | H48: =D48*KOEF!$C$7 -> 711.1679001 | I48: =D48^2*(KOEF!$C$7*(1-KOEF!$C$7)) -> 505254022.4 | J48: =D48^3*(KOEF!$C$7-3*KOEF!$C$7^2+2*KOEF!$C$7^3) -> 3.586018013e+14 | L48: 711167.9001 | M48: =L48*KOEF!$C$7 -> 711.1679001 | N48: =L48^2*(KOEF!$C$7*(1-KOEF!$C$7)) -> 505254022.4 | O48: =L48^3*(KOEF!$C$7-3*KOEF!$C$7^2+2*KOEF!$C$7^3) -> 3.586018013e+14 | R48: =D48*KOEF!$C$7/KOEF!$C$6 -> 2370.559667 | S48: =D48*KOEF!$L$28 -> 1066.75185 | U48: 0 | V48: 0 | Y48: 5000000
B49: 250000 | D49: 247134.5457 | H49: =D49*KOEF!$C$7 -> 247.1345457 | I49: =D49^2*(KOEF!$C$7*(1-KOEF!$C$7)) -> 61014408.2 | J49: =D49^3*(KOEF!$C$7-3*KOEF!$C$7^2+2*KOEF!$C$7^3) -> 1.504861052e+13 | L49: 247134.5457 | M49: =L49*KOEF!$C$7 -> 247.1345457 | N49: =L49^2*(KOEF!$C$7*(1-KOEF!$C$7)) -> 61014408.2 | O49: =L49^3*(KOEF!$C$7-3*KOEF!$C$7^2+2*KOEF!$C$7^3) -> 1.504861052e+13 | R49: =D49*KOEF!$C$7/KOEF!$C$6 -> 823.7818191 | S49: =D49*KOEF!$L$28 -> 370.7018186 | U49: 0 | V49: 0 | Y49: 5100000
B50: 300000 | D50: 230395.0773 | H50: =D50*KOEF!$C$7 -> 230.3950773 | I50: =D50^2*(KOEF!$C$7*(1-KOEF!$C$7)) -> 53028809.75 | J50: =D50^3*(KOEF!$C$7-3*KOEF!$C$7^2+2*KOEF!$C$7^3) -> 1.219314157e+13 | L50: 230395.0773 | M50: =L50*KOEF!$C$7 -> 230.3950773 | N50: =L50^2*(KOEF!$C$7*(1-KOEF!$C$7)) -> 53028809.75 | O50: =L50^3*(KOEF!$C$7-3*KOEF!$C$7^2+2*KOEF!$C$7^3) -> 1.219314157e+13 | R50: =D50*KOEF!$C$7/KOEF!$C$6 -> 767.983591 | S50: =D50*KOEF!$L$28 -> 345.5926159 | U50: 0 | V50: 0 | Y50: 5200000
B51: 300000 | D51: 124108.6595 | H51: =D51*KOEF!$C$7 -> 124.1086595 | I51: =D51^2*(KOEF!$C$7*(1-KOEF!$C$7)) -> 15387556.4 | J51: =D51^3*(KOEF!$C$7-3*KOEF!$C$7^2+2*KOEF!$C$7^3) -> 1.90590954e+12 | L51: 124108.6595 | M51: =L51*KOEF!$C$7 -> 124.1086595 | N51: =L51^2*(KOEF!$C$7*(1-KOEF!$C$7)) -> 15387556.4 | O51: =L51^3*(KOEF!$C$7-3*KOEF!$C$7^2+2*KOEF!$C$7^3) -> 1.90590954e+12 | R51: =D51*KOEF!$C$7/KOEF!$C$6 -> 413.6955317 | S51: =D51*KOEF!$L$28 -> 186.1629892 | U51: 0 | V51: 0 | Y51: 5300000
B52: 300000 | D52: 146787.7219 | H52: =D52*KOEF!$C$7 -> 146.7877219 | I52: =D52^2*(KOEF!$C$7*(1-KOEF!$C$7)) -> 21525088.66 | J52: =D52^3*(KOEF!$C$7-3*KOEF!$C$7^2+2*KOEF!$C$7^3) -> 3.15329949e+12 | L52: 146787.7219 | M52: =L52*KOEF!$C$7 -> 146.7877219 | N52: =L52^2*(KOEF!$C$7*(1-KOEF!$C$7)) -> 21525088.66 | O52: =L52^3*(KOEF!$C$7-3*KOEF!$C$7^2+2*KOEF!$C$7^3) -> 3.15329949e+12 | R52: =D52*KOEF!$C$7/KOEF!$C$6 -> 489.2924063 | S52: =D52*KOEF!$L$28 -> 220.1815828 | U52: 0 | V52: 0 | Y52: 5400000
B53: 350000 | D53: 144208.0804 | H53: =D53*KOEF!$C$7 -> 144.2080804 | I53: =D53^2*(KOEF!$C$7*(1-KOEF!$C$7)) -> 20775174.48 | J53: =D53^3*(KOEF!$C$7-3*KOEF!$C$7^2+2*KOEF!$C$7^3) -> 2.989956135e+12 | L53: 144208.0804 | M53: =L53*KOEF!$C$7 -> 144.2080804 | N53: =L53^2*(KOEF!$C$7*(1-KOEF!$C$7)) -> 20775174.48 | O53: =L53^3*(KOEF!$C$7-3*KOEF!$C$7^2+2*KOEF!$C$7^3) -> 2.989956135e+12 | R53: =D53*KOEF!$C$7/KOEF!$C$6 -> 480.6936013 | S53: =D53*KOEF!$L$28 -> 216.3121206 | U53: 0 | V53: 0 | Y53: 5500000
B54: 400000 | D54: 392528.2247 | H54: =D54*KOEF!$C$7 -> 392.5282247 | I54: =D54^2*(KOEF!$C$7*(1-KOEF!$C$7)) -> 153924328.8 | J54: =D54^3*(KOEF!$C$7-3*KOEF!$C$7^2+2*KOEF!$C$7^3) -> 6.029880421e+13 | L54: 392528.2247 | M54: =L54*KOEF!$C$7 -> 392.5282247 | N54: =L54^2*(KOEF!$C$7*(1-KOEF!$C$7)) -> 153924328.8 | O54: =L54^3*(KOEF!$C$7-3*KOEF!$C$7^2+2*KOEF!$C$7^3) -> 6.029880421e+13 | R54: =D54*KOEF!$C$7/KOEF!$C$6 -> 1308.427416 | S54: =D54*KOEF!$L$28 -> 588.792337 | U54: 0 | V54: 0 | Y54: 5600000
B55: 497169 | D55: 165768.9771 | H55: =D55*KOEF!$C$7 -> 165.7689771 | I55: =D55^2*(KOEF!$C$7*(1-KOEF!$C$7)) -> 27451874.42 | J55: =D55^3*(KOEF!$C$7-3*KOEF!$C$7^2+2*KOEF!$C$7^3) -> 4.541567804e+12 | L55: 165768.9771 | M55: =L55*KOEF!$C$7 -> 165.7689771 | N55: =L55^2*(KOEF!$C$7*(1-KOEF!$C$7)) -> 27451874.42 | O55: =L55^3*(KOEF!$C$7-3*KOEF!$C$7^2+2*KOEF!$C$7^3) -> 4.541567804e+12 | R55: =D55*KOEF!$C$7/KOEF!$C$6 -> 552.563257 | S55: =D55*KOEF!$L$28 -> 248.6534657 | U55: 0 | V55: 0 | Y55: 5700000
B56: 500000 | D56: 195573.4705 | H56: =D56*KOEF!$C$7 -> 195.5734705 | I56: =D56^2*(KOEF!$C$7*(1-KOEF!$C$7)) -> 38210733.38 | J56: =D56^3*(KOEF!$C$7-3*KOEF!$C$7^2+2*KOEF!$C$7^3) -> 7.458059726e+12 | L56: 195573.4705 | M56: =L56*KOEF!$C$7 -> 195.5734705 | N56: =L56^2*(KOEF!$C$7*(1-KOEF!$C$7)) -> 38210733.38 | O56: =L56^3*(KOEF!$C$7-3*KOEF!$C$7^2+2*KOEF!$C$7^3) -> 7.458059726e+12 | R56: =D56*KOEF!$C$7/KOEF!$C$6 -> 651.9115683 | S56: =D56*KOEF!$L$28 -> 293.3602057 | U56: 0 | V56: 0 | Y56: 5800000
B57: 500000 | D57: 100469.3065 | H57: =D57*KOEF!$C$7 -> 100.4693065 | I57: =D57^2*(KOEF!$C$7*(1-KOEF!$C$7)) -> 10083987.46 | J57: =D57^3*(KOEF!$C$7-3*KOEF!$C$7^2+2*KOEF!$C$7^3) -> 1.011104964e+12 | L57: 100469.3065 | M57: =L57*KOEF!$C$7 -> 100.4693065 | N57: =L57^2*(KOEF!$C$7*(1-KOEF!$C$7)) -> 10083987.46 | O57: =L57^3*(KOEF!$C$7-3*KOEF!$C$7^2+2*KOEF!$C$7^3) -> 1.011104964e+12 | R57: =D57*KOEF!$C$7/KOEF!$C$6 -> 334.8976882 | S57: =D57*KOEF!$L$28 -> 150.7039597 | U57: 0 | V57: 0 | Y57: 5900000
B58: 510500 | D58: 157972.8486 | H58: =D58*KOEF!$C$7 -> 157.9728486 | I58: =D58^2*(KOEF!$C$7*(1-KOEF!$C$7)) -> 24930465.47 | J58: =D58^3*(KOEF!$C$7-3*KOEF!$C$7^2+2*KOEF!$C$7^3) -> 3.930459974e+12 | L58: 157972.8486 | M58: =L58*KOEF!$C$7 -> 157.9728486 | N58: =L58^2*(KOEF!$C$7*(1-KOEF!$C$7)) -> 24930465.47 | O58: =L58^3*(KOEF!$C$7-3*KOEF!$C$7^2+2*KOEF!$C$7^3) -> 3.930459974e+12 | R58: =D58*KOEF!$C$7/KOEF!$C$6 -> 526.576162 | S58: =D58*KOEF!$L$28 -> 236.9592729 | U58: 0 | V58: 0 | Y58: 6000000
B59: 532923 | D59: 206577.337 | H59: =D59*KOEF!$C$7 -> 206.577337 | I59: =D59^2*(KOEF!$C$7*(1-KOEF!$C$7)) -> 42631521.97 | J59: =D59^3*(KOEF!$C$7-3*KOEF!$C$7^2+2*KOEF!$C$7^3) -> 8.789092869e+12 | L59: 206577.337 | M59: =L59*KOEF!$C$7 -> 206.577337 | N59: =L59^2*(KOEF!$C$7*(1-KOEF!$C$7)) -> 42631521.97 | O59: =L59^3*(KOEF!$C$7-3*KOEF!$C$7^2+2*KOEF!$C$7^3) -> 8.789092869e+12 | R59: =D59*KOEF!$C$7/KOEF!$C$6 -> 688.5911234 | S59: =D59*KOEF!$L$28 -> 309.8660055 | U59: 0 | V59: 0 | Y59: 6100000
B60: 539991.9 | D60: 404060.8674 | H60: =D60*KOEF!$C$7 -> 404.0608674 | I60: =D60^2*(KOEF!$C$7*(1-KOEF!$C$7)) -> 163101919.4 | J60: =D60^3*(KOEF!$C$7-3*KOEF!$C$7^2+2*KOEF!$C$7^3) -> 6.57712968e+13 | L60: 404060.8674 | M60: =L60*KOEF!$C$7 -> 404.0608674 | N60: =L60^2*(KOEF!$C$7*(1-KOEF!$C$7)) -> 163101919.4 | O60: =L60^3*(KOEF!$C$7-3*KOEF!$C$7^2+2*KOEF!$C$7^3) -> 6.57712968e+13 | R60: =D60*KOEF!$C$7/KOEF!$C$6 -> 1346.869558 | S60: =D60*KOEF!$L$28 -> 606.091301 | U60: 0 | V60: 0 | Y60: 6200000
B61: 553500 | D61: 141244.1511 | H61: =D61*KOEF!$C$7 -> 141.2441511 | I61: =D61^2*(KOEF!$C$7*(1-KOEF!$C$7)) -> 19929960.32 | J61: =D61^3*(KOEF!$C$7-3*KOEF!$C$7^2+2*KOEF!$C$7^3) -> 2.809360346e+12 | L61: 141244.1511 | M61: =L61*KOEF!$C$7 -> 141.2441511 | N61: =L61^2*(KOEF!$C$7*(1-KOEF!$C$7)) -> 19929960.32 | O61: =L61^3*(KOEF!$C$7-3*KOEF!$C$7^2+2*KOEF!$C$7^3) -> 2.809360346e+12 | R61: =D61*KOEF!$C$7/KOEF!$C$6 -> 470.8138371 | S61: =D61*KOEF!$L$28 -> 211.8662267 | U61: 0 | V61: 0 | Y61: 6300000
B62: 553500 | D62: 185461.9167 | H62: =D62*KOEF!$C$7 -> 185.4619167 | I62: =D62^2*(KOEF!$C$7*(1-KOEF!$C$7)) -> 34361726.44 | J62: =D62^3*(KOEF!$C$7-3*KOEF!$C$7^2+2*KOEF!$C$7^3) -> 6.360046064e+12 | L62: 185461.9167 | M62: =L62*KOEF!$C$7 -> 185.4619167 | N62: =L62^2*(KOEF!$C$7*(1-KOEF!$C$7)) -> 34361726.44 | O62: =L62^3*(KOEF!$C$7-3*KOEF!$C$7^2+2*KOEF!$C$7^3) -> 6.360046064e+12 | R62: =D62*KOEF!$C$7/KOEF!$C$6 -> 618.2063891 | S62: =D62*KOEF!$L$28 -> 278.1928751 | U62: 0 | V62: 0 | Y62: 6400000
B63: 565900 | D63: 130960.4027 | H63: =D63*KOEF!$C$7 -> 130.9604027 | I63: =D63^2*(KOEF!$C$7*(1-KOEF!$C$7)) -> 17133476.46 | J63: =D63^3*(KOEF!$C$7-3*KOEF!$C$7^2+2*KOEF!$C$7^3) -> 2.239319364e+12 | L63: 130960.4027 | M63: =L63*KOEF!$C$7 -> 130.9604027 | N63: =L63^2*(KOEF!$C$7*(1-KOEF!$C$7)) -> 17133476.46 | O63: =L63^3*(KOEF!$C$7-3*KOEF!$C$7^2+2*KOEF!$C$7^3) -> 2.239319364e+12 | R63: =D63*KOEF!$C$7/KOEF!$C$6 -> 436.5346758 | S63: =D63*KOEF!$L$28 -> 196.4406041 | U63: 0 | V63: 0 | Y63: 6500000
B64: 590240 | D64: 1436681.257 | H64: =D64*KOEF!$C$7 -> 1436.681257 | I64: =D64^2*(KOEF!$C$7*(1-KOEF!$C$7)) -> 2061988982 | J64: =D64^3*(KOEF!$C$7-3*KOEF!$C$7^2+2*KOEF!$C$7^3) -> 2956496081844907 | L64: 1436681.257 | M64: =L64*KOEF!$C$7 -> 1436.681257 | N64: =L64^2*(KOEF!$C$7*(1-KOEF!$C$7)) -> 2061988982 | O64: =L64^3*(KOEF!$C$7-3*KOEF!$C$7^2+2*KOEF!$C$7^3) -> 2956496081844907 | R64: =D64*KOEF!$C$7/KOEF!$C$6 -> 4788.937525 | S64: =D64*KOEF!$L$28 -> 2155.021886 | U64: 0 | V64: 0 | Y64: 6600000
B65: 600000 | D65: 176696.0849 | H65: =D65*KOEF!$C$7 -> 176.6960849 | I65: =D65^2*(KOEF!$C$7*(1-KOEF!$C$7)) -> 31190284.92 | J65: =D65^3*(KOEF!$C$7-3*KOEF!$C$7^2+2*KOEF!$C$7^3) -> 5.50017883e+12 | L65: 176696.0849 | M65: =L65*KOEF!$C$7 -> 176.6960849 | N65: =L65^2*(KOEF!$C$7*(1-KOEF!$C$7)) -> 31190284.92 | O65: =L65^3*(KOEF!$C$7-3*KOEF!$C$7^2+2*KOEF!$C$7^3) -> 5.50017883e+12 | R65: =D65*KOEF!$C$7/KOEF!$C$6 -> 588.9869497 | S65: =D65*KOEF!$L$28 -> 265.0441274 | U65: 0 | V65: 0 | Y65: 6700000
B66: 774664 | D66: 147085.3872 | H66: =D66*KOEF!$C$7 -> 147.0853872 | I66: =D66^2*(KOEF!$C$7*(1-KOEF!$C$7)) -> 21612477.02 | J66: =D66^3*(KOEF!$C$7-3*KOEF!$C$7^2+2*KOEF!$C$7^3) -> 3.172521792e+12 | L66: 147085.3872 | M66: =L66*KOEF!$C$7 -> 147.0853872 | N66: =L66^2*(KOEF!$C$7*(1-KOEF!$C$7)) -> 21612477.02 | O66: =L66^3*(KOEF!$C$7-3*KOEF!$C$7^2+2*KOEF!$C$7^3) -> 3.172521792e+12 | R66: =D66*KOEF!$C$7/KOEF!$C$6 -> 490.284624 | S66: =D66*KOEF!$L$28 -> 220.6280808 | U66: 0 | V66: 0 | Y66: 6800000
B67: 1000000 | D67: 186711.1351 | H67: =D67*KOEF!$C$7 -> 186.7111351 | I67: =D67^2*(KOEF!$C$7*(1-KOEF!$C$7)) -> 34826186.93 | J67: =D67^3*(KOEF!$C$7-3*KOEF!$C$7^2+2*KOEF!$C$7^3) -> 6.48943202e+12 | L67: 186711.1351 | M67: =L67*KOEF!$C$7 -> 186.7111351 | N67: =L67^2*(KOEF!$C$7*(1-KOEF!$C$7)) -> 34826186.93 | O67: =L67^3*(KOEF!$C$7-3*KOEF!$C$7^2+2*KOEF!$C$7^3) -> 6.48943202e+12 | R67: =D67*KOEF!$C$7/KOEF!$C$6 -> 622.3704504 | S67: =D67*KOEF!$L$28 -> 280.0667027 | U67: 0 | V67: 0 | Y67: 6900000
B68: 1000000 | D68: 248069.6659 | H68: =D68*KOEF!$C$7 -> 248.0696659 | I68: =D68^2*(KOEF!$C$7*(1-KOEF!$C$7)) -> 61477020.58 | J68: =D68^3*(KOEF!$C$7-3*KOEF!$C$7^2+2*KOEF!$C$7^3) -> 1.522008279e+13 | L68: 248069.6659 | M68: =L68*KOEF!$C$7 -> 248.0696659 | N68: =L68^2*(KOEF!$C$7*(1-KOEF!$C$7)) -> 61477020.58 | O68: =L68^3*(KOEF!$C$7-3*KOEF!$C$7^2+2*KOEF!$C$7^3) -> 1.522008279e+13 | R68: =D68*KOEF!$C$7/KOEF!$C$6 -> 826.8988863 | S68: =D68*KOEF!$L$28 -> 372.1044989 | U68: 0 | V68: 0 | Y68: 7000000
B69: 1000000 | D69: 191515.0399 | H69: =D69*KOEF!$C$7 -> 191.5150399 | I69: =D69^2*(KOEF!$C$7*(1-KOEF!$C$7)) -> 36641332.48 | J69: =D69^3*(KOEF!$C$7-3*KOEF!$C$7^2+2*KOEF!$C$7^3) -> 7.003331518e+12 | L69: 191515.0399 | M69: =L69*KOEF!$C$7 -> 191.5150399 | N69: =L69^2*(KOEF!$C$7*(1-KOEF!$C$7)) -> 36641332.48 | O69: =L69^3*(KOEF!$C$7-3*KOEF!$C$7^2+2*KOEF!$C$7^3) -> 7.003331518e+12 | R69: =D69*KOEF!$C$7/KOEF!$C$6 -> 638.3834662 | S69: =D69*KOEF!$L$28 -> 287.2725598 | U69: =R69*MAX((D69-$P$1),0)/D69 -> 0 | V69: =S69*MAX((D69-$P$1),0)/D69 -> 0 | Y69: 7100000
B70: 1500000 | D70: 332984.3165 | H70: =D70*KOEF!$C$7 -> 332.9843165 | I70: =D70^2*(KOEF!$C$7*(1-KOEF!$C$7)) -> 110767676.5 | J70: =D70^3*(KOEF!$C$7-3*KOEF!$C$7^2+2*KOEF!$C$7^3) -> 3.681013123e+13 | L70: =MIN(D70,$P$1) -> 332984.3165 | M70: =L70*KOEF!$C$7 -> 332.9843165 | N70: =L70^2*(KOEF!$C$7*(1-KOEF!$C$7)) -> 110767676.5 | O70: =L70^3*(KOEF!$C$7-3*KOEF!$C$7^2+2*KOEF!$C$7^3) -> 3.681013123e+13 | R70: =D70*KOEF!$C$7/KOEF!$C$6 -> 1109.947722 | S70: =D70*KOEF!$L$28 -> 499.4764747 | U70: 0 | V70: 0 | Y70: 7200000
D71: 126645.3651 | H71: =D71*KOEF!$C$7 -> 126.6453651 | I71: =D71^2*(KOEF!$C$7*(1-KOEF!$C$7)) -> 16023009.44 | J71: =D71^3*(KOEF!$C$7-3*KOEF!$C$7^2+2*KOEF!$C$7^3) -> 2.0251814e+12 | L71: 126645.3651 | M71: =L71*KOEF!$C$7 -> 126.6453651 | N71: =L71^2*(KOEF!$C$7*(1-KOEF!$C$7)) -> 16023009.44 | O71: =L71^3*(KOEF!$C$7-3*KOEF!$C$7^2+2*KOEF!$C$7^3) -> 2.0251814e+12 | R71: =D71*KOEF!$C$7/KOEF!$C$6 -> 422.1512169 | S71: =D71*KOEF!$L$28 -> 189.9680476 | U71: 0 | V71: 0 | Y71: 7300000
D72: 119956.7131 | H72: =D72*KOEF!$C$7 -> 119.9567131 | I72: =D72^2*(KOEF!$C$7*(1-KOEF!$C$7)) -> 14375223.41 | J72: =D72^3*(KOEF!$C$7-3*KOEF!$C$7^2+2*KOEF!$C$7^3) -> 1.720955742e+12 | L72: 119956.7131 | M72: =L72*KOEF!$C$7 -> 119.9567131 | N72: =L72^2*(KOEF!$C$7*(1-KOEF!$C$7)) -> 14375223.41 | O72: =L72^3*(KOEF!$C$7-3*KOEF!$C$7^2+2*KOEF!$C$7^3) -> 1.720955742e+12 | R72: =D72*KOEF!$C$7/KOEF!$C$6 -> 399.8557105 | S72: =D72*KOEF!$L$28 -> 179.9350697 | U72: 0 | V72: 0 | Y72: 7400000
D73: 103228.4677 | H73: =D73*KOEF!$C$7 -> 103.2284677 | I73: =D73^2*(KOEF!$C$7*(1-KOEF!$C$7)) -> 10645460.43 | J73: =D73^3*(KOEF!$C$7-3*KOEF!$C$7^2+2*KOEF!$C$7^3) -> 1.096716739e+12 | L73: 103228.4677 | M73: =L73*KOEF!$C$7 -> 103.2284677 | N73: =L73^2*(KOEF!$C$7*(1-KOEF!$C$7)) -> 10645460.43 | O73: =L73^3*(KOEF!$C$7-3*KOEF!$C$7^2+2*KOEF!$C$7^3) -> 1.096716739e+12 | R73: =D73*KOEF!$C$7/KOEF!$C$6 -> 344.0948923 | S73: =D73*KOEF!$L$28 -> 154.8427016 | U73: 0 | V73: 0 | Y73: 7500000
D74: 100061.7411 | H74: =D74*KOEF!$C$7 -> 100.0617411 | I74: =D74^2*(KOEF!$C$7*(1-KOEF!$C$7)) -> 10002339.68 | J74: =D74^3*(KOEF!$C$7-3*KOEF!$C$7^2+2*KOEF!$C$7^3) -> 9.988498208e+11 | L74: 100061.7411 | M74: =L74*KOEF!$C$7 -> 100.0617411 | N74: =L74^2*(KOEF!$C$7*(1-KOEF!$C$7)) -> 10002339.68 | O74: =L74^3*(KOEF!$C$7-3*KOEF!$C$7^2+2*KOEF!$C$7^3) -> 9.988498208e+11 | R74: =D74*KOEF!$C$7/KOEF!$C$6 -> 333.539137 | S74: =D74*KOEF!$L$28 -> 150.0926117 | U74: 0 | V74: 0 | Y74: 7600000
D75: 192016.2712 | H75: =D75*KOEF!$C$7 -> 192.0162712 | I75: =D75^2*(KOEF!$C$7*(1-KOEF!$C$7)) -> 36833378.15 | J75: =D75^3*(KOEF!$C$7-3*KOEF!$C$7^2+2*KOEF!$C$7^3) -> 7.058462713e+12 | L75: 192016.2712 | M75: =L75*KOEF!$C$7 -> 192.0162712 | N75: =L75^2*(KOEF!$C$7*(1-KOEF!$C$7)) -> 36833378.15 | O75: =L75^3*(KOEF!$C$7-3*KOEF!$C$7^2+2*KOEF!$C$7^3) -> 7.058462713e+12 | R75: =D75*KOEF!$C$7/KOEF!$C$6 -> 640.0542373 | S75: =D75*KOEF!$L$28 -> 288.0244068 | U75: 0 | V75: 0 | Y75: 7700000
D76: 189413.6543 | H76: =D76*KOEF!$C$7 -> 189.4136543 | I76: =D76^2*(KOEF!$C$7*(1-KOEF!$C$7)) -> 35841654.89 | J76: =D76^3*(KOEF!$C$7-3*KOEF!$C$7^2+2*KOEF!$C$7^3) -> 6.775321029e+12 | L76: 189413.6543 | M76: =L76*KOEF!$C$7 -> 189.4136543 | N76: =L76^2*(KOEF!$C$7*(1-KOEF!$C$7)) -> 35841654.89 | O76: =L76^3*(KOEF!$C$7-3*KOEF!$C$7^2+2*KOEF!$C$7^3) -> 6.775321029e+12 | R76: =D76*KOEF!$C$7/KOEF!$C$6 -> 631.3788475 | S76: =D76*KOEF!$L$28 -> 284.1204814 | U76: 0 | V76: 0 | Y76: 7800000
D77: 689251.5304 | H77: =D77*KOEF!$C$7 -> 689.2515304 | I77: =D77^2*(KOEF!$C$7*(1-KOEF!$C$7)) -> 474592604.5 | J77: =D77^3*(KOEF!$C$7-3*KOEF!$C$7^2+2*KOEF!$C$7^3) -> 3.264594516e+14 | L77: 689251.5304 | M77: =L77*KOEF!$C$7 -> 689.2515304 | N77: =L77^2*(KOEF!$C$7*(1-KOEF!$C$7)) -> 474592604.5 | O77: =L77^3*(KOEF!$C$7-3*KOEF!$C$7^2+2*KOEF!$C$7^3) -> 3.264594516e+14 | R77: =D77*KOEF!$C$7/KOEF!$C$6 -> 2297.505101 | S77: =D77*KOEF!$L$28 -> 1033.877296 | U77: 0 | V77: 0 | Y77: 7900000
D78: 182140.4741 | H78: =D78*KOEF!$C$7 -> 182.1404741 | I78: =D78^2*(KOEF!$C$7*(1-KOEF!$C$7)) -> 33141977.17 | J78: =D78^3*(KOEF!$C$7-3*KOEF!$C$7^2+2*KOEF!$C$7^3) -> 6.024422445e+12 | L78: 182140.4741 | M78: =L78*KOEF!$C$7 -> 182.1404741 | N78: =L78^2*(KOEF!$C$7*(1-KOEF!$C$7)) -> 33141977.17 | O78: =L78^3*(KOEF!$C$7-3*KOEF!$C$7^2+2*KOEF!$C$7^3) -> 6.024422445e+12 | R78: =D78*KOEF!$C$7/KOEF!$C$6 -> 607.1349138 | S78: =D78*KOEF!$L$28 -> 273.2107112 | U78: 0 | V78: 0 | Y78: 8000000
D79: 166066.51 | H79: =D79*KOEF!$C$7 -> 166.06651 | I79: =D79^2*(KOEF!$C$7*(1-KOEF!$C$7)) -> 27550507.66 | J79: =D79^3*(KOEF!$C$7-3*KOEF!$C$7^2+2*KOEF!$C$7^3) -> 4.566066222e+12 | L79: 166066.51 | M79: =L79*KOEF!$C$7 -> 166.06651 | N79: =L79^2*(KOEF!$C$7*(1-KOEF!$C$7)) -> 27550507.66 | O79: =L79^3*(KOEF!$C$7-3*KOEF!$C$7^2+2*KOEF!$C$7^3) -> 4.566066222e+12 | R79: =D79*KOEF!$C$7/KOEF!$C$6 -> 553.5550333 | S79: =D79*KOEF!$L$28 -> 249.099765 | U79: 0 | V79: 0
D80: 170761.3986 | H80: =D80*KOEF!$C$7 -> 170.7613986 | I80: =D80^2*(KOEF!$C$7*(1-KOEF!$C$7)) -> 29130295.81 | J80: =D80^3*(KOEF!$C$7-3*KOEF!$C$7^2+2*KOEF!$C$7^3) -> 4.964381395e+12 | L80: 170761.3986 | M80: =L80*KOEF!$C$7 -> 170.7613986 | N80: =L80^2*(KOEF!$C$7*(1-KOEF!$C$7)) -> 29130295.81 | O80: =L80^3*(KOEF!$C$7-3*KOEF!$C$7^2+2*KOEF!$C$7^3) -> 4.964381395e+12 | R80: =D80*KOEF!$C$7/KOEF!$C$6 -> 569.2046621 | S80: =D80*KOEF!$L$28 -> 256.142098 | U80: 0 | V80: 0
D81: 133105.8858 | H81: =D81*KOEF!$C$7 -> 133.1058858 | I81: =D81^2*(KOEF!$C$7*(1-KOEF!$C$7)) -> 17699459.65 | J81: =D81^3*(KOEF!$C$7-3*KOEF!$C$7^2+2*KOEF!$C$7^3) -> 2.35119045e+12 | L81: 133105.8858 | M81: =L81*KOEF!$C$7 -> 133.1058858 | N81: =L81^2*(KOEF!$C$7*(1-KOEF!$C$7)) -> 17699459.65 | O81: =L81^3*(KOEF!$C$7-3*KOEF!$C$7^2+2*KOEF!$C$7^3) -> 2.35119045e+12 | R81: =D81*KOEF!$C$7/KOEF!$C$6 -> 443.6862859 | S81: =D81*KOEF!$L$28 -> 199.6588287 | U81: 0 | V81: 0
D82: 198283.1118 | H82: =D82*KOEF!$C$7 -> 198.2831118 | I82: =D82^2*(KOEF!$C$7*(1-KOEF!$C$7)) -> 39276876.22 | J82: =D82^3*(KOEF!$C$7-3*KOEF!$C$7^2+2*KOEF!$C$7^3) -> 7.772365355e+12 | L82: 198283.1118 | M82: =L82*KOEF!$C$7 -> 198.2831118 | N82: =L82^2*(KOEF!$C$7*(1-KOEF!$C$7)) -> 39276876.22 | O82: =L82^3*(KOEF!$C$7-3*KOEF!$C$7^2+2*KOEF!$C$7^3) -> 7.772365355e+12 | R82: =D82*KOEF!$C$7/KOEF!$C$6 -> 660.9437059 | S82: =D82*KOEF!$L$28 -> 297.4246677 | U82: 0 | V82: 0
D83: 171241.5834 | H83: =D83*KOEF!$C$7 -> 171.2415834 | I83: =D83^2*(KOEF!$C$7*(1-KOEF!$C$7)) -> 29294356.22 | J83: =D83^3*(KOEF!$C$7-3*KOEF!$C$7^2+2*KOEF!$C$7^3) -> 5.006379121e+12 | L83: 171241.5834 | M83: =L83*KOEF!$C$7 -> 171.2415834 | N83: =L83^2*(KOEF!$C$7*(1-KOEF!$C$7)) -> 29294356.22 | O83: =L83^3*(KOEF!$C$7-3*KOEF!$C$7^2+2*KOEF!$C$7^3) -> 5.006379121e+12 | R83: =D83*KOEF!$C$7/KOEF!$C$6 -> 570.8052781 | S83: =D83*KOEF!$L$28 -> 256.8623752 | U83: 0 | V83: 0
D84: 217024.8872 | H84: =D84*KOEF!$C$7 -> 217.0248872 | I84: =D84^2*(KOEF!$C$7*(1-KOEF!$C$7)) -> 47052701.87 | J84: =D84^3*(KOEF!$C$7-3*KOEF!$C$7^2+2*KOEF!$C$7^3) -> 1.01911841e+13 | L84: 217024.8872 | M84: =L84*KOEF!$C$7 -> 217.0248872 | N84: =L84^2*(KOEF!$C$7*(1-KOEF!$C$7)) -> 47052701.87 | O84: =L84^3*(KOEF!$C$7-3*KOEF!$C$7^2+2*KOEF!$C$7^3) -> 1.01911841e+13 | R84: =D84*KOEF!$C$7/KOEF!$C$6 -> 723.4162908 | S84: =D84*KOEF!$L$28 -> 325.5373308 | U84: 0 | V84: 0
D85: 134413.7363 | H85: =D85*KOEF!$C$7 -> 134.4137363 | I85: =D85^2*(KOEF!$C$7*(1-KOEF!$C$7)) -> 18048985.46 | J85: =D85^3*(KOEF!$C$7-3*KOEF!$C$7^2+2*KOEF!$C$7^3) -> 2.421179509e+12 | L85: 134413.7363 | M85: =L85*KOEF!$C$7 -> 134.4137363 | N85: =L85^2*(KOEF!$C$7*(1-KOEF!$C$7)) -> 18048985.46 | O85: =L85^3*(KOEF!$C$7-3*KOEF!$C$7^2+2*KOEF!$C$7^3) -> 2.421179509e+12 | R85: =D85*KOEF!$C$7/KOEF!$C$6 -> 448.0457878 | S85: =D85*KOEF!$L$28 -> 201.6206045 | U85: 0 | V85: 0
D86: 311092.3668 | H86: =D86*KOEF!$C$7 -> 311.0923668 | I86: =D86^2*(KOEF!$C$7*(1-KOEF!$C$7)) -> 96681682.24 | J86: =D86^3*(KOEF!$C$7-3*KOEF!$C$7^2+2*KOEF!$C$7^3) -> 3.001677949e+13 | L86: 311092.3668 | M86: =L86*KOEF!$C$7 -> 311.0923668 | N86: =L86^2*(KOEF!$C$7*(1-KOEF!$C$7)) -> 96681682.24 | O86: =L86^3*(KOEF!$C$7-3*KOEF!$C$7^2+2*KOEF!$C$7^3) -> 3.001677949e+13 | R86: =D86*KOEF!$C$7/KOEF!$C$6 -> 1036.974556 | S86: =D86*KOEF!$L$28 -> 466.6385502 | U86: 0 | V86: 0
D87: 100874.1639 | H87: =D87*KOEF!$C$7 -> 100.8741639 | I87: =D87^2*(KOEF!$C$7*(1-KOEF!$C$7)) -> 10165421.34 | J87: =D87^3*(KOEF!$C$7-3*KOEF!$C$7^2+2*KOEF!$C$7^3) -> 1.023377521e+12 | L87: 100874.1639 | M87: =L87*KOEF!$C$7 -> 100.8741639 | N87: =L87^2*(KOEF!$C$7*(1-KOEF!$C$7)) -> 10165421.34 | O87: =L87^3*(KOEF!$C$7-3*KOEF!$C$7^2+2*KOEF!$C$7^3) -> 1.023377521e+12 | R87: =D87*KOEF!$C$7/KOEF!$C$6 -> 336.2472129 | S87: =D87*KOEF!$L$28 -> 151.3112458 | U87: 0 | V87: 0
D88: 110056.8767 | H88: =D88*KOEF!$C$7 -> 110.0568767 | I88: =D88^2*(KOEF!$C$7*(1-KOEF!$C$7)) -> 12100403.59 | J88: =D88^3*(KOEF!$C$7-3*KOEF!$C$7^2+2*KOEF!$C$7^3) -> 1.329069161e+12 | L88: 110056.8767 | M88: =L88*KOEF!$C$7 -> 110.0568767 | N88: =L88^2*(KOEF!$C$7*(1-KOEF!$C$7)) -> 12100403.59 | O88: =L88^3*(KOEF!$C$7-3*KOEF!$C$7^2+2*KOEF!$C$7^3) -> 1.329069161e+12 | R88: =D88*KOEF!$C$7/KOEF!$C$6 -> 366.8562557 | S88: =D88*KOEF!$L$28 -> 165.085315 | U88: 0 | V88: 0
D89: 110299.344 | H89: =D89*KOEF!$C$7 -> 110.299344 | I89: =D89^2*(KOEF!$C$7*(1-KOEF!$C$7)) -> 12153779.35 | J89: =D89^3*(KOEF!$C$7-3*KOEF!$C$7^2+2*KOEF!$C$7^3) -> 1.337872782e+12 | L89: 110299.344 | M89: =L89*KOEF!$C$7 -> 110.299344 | N89: =L89^2*(KOEF!$C$7*(1-KOEF!$C$7)) -> 12153779.35 | O89: =L89^3*(KOEF!$C$7-3*KOEF!$C$7^2+2*KOEF!$C$7^3) -> 1.337872782e+12 | R89: =D89*KOEF!$C$7/KOEF!$C$6 -> 367.6644801 | S89: =D89*KOEF!$L$28 -> 165.449016 | U89: 0 | V89: 0
D90: 101244.4657 | H90: =D90*KOEF!$C$7 -> 101.2444657 | I90: =D90^2*(KOEF!$C$7*(1-KOEF!$C$7)) -> 10240191.39 | J90: =D90^3*(KOEF!$C$7-3*KOEF!$C$7^2+2*KOEF!$C$7^3) -> 1.034689181e+12 | L90: 101244.4657 | M90: =L90*KOEF!$C$7 -> 101.2444657 | N90: =L90^2*(KOEF!$C$7*(1-KOEF!$C$7)) -> 10240191.39 | O90: =L90^3*(KOEF!$C$7-3*KOEF!$C$7^2+2*KOEF!$C$7^3) -> 1.034689181e+12 | R90: =D90*KOEF!$C$7/KOEF!$C$6 -> 337.4815523 | S90: =D90*KOEF!$L$28 -> 151.8666985 | U90: 0 | V90: 0
D91: 495444.9012 | H91: =D91*KOEF!$C$7 -> 495.4449012 | I91: =D91^2*(KOEF!$C$7*(1-KOEF!$C$7)) -> 245220184.4 | J91: =D91^3*(KOEF!$C$7-3*KOEF!$C$7^2+2*KOEF!$C$7^3) -> 1.212501039e+14 | L91: 495444.9012 | M91: =L91*KOEF!$C$7 -> 495.4449012 | N91: =L91^2*(KOEF!$C$7*(1-KOEF!$C$7)) -> 245220184.4 | O91: =L91^3*(KOEF!$C$7-3*KOEF!$C$7^2+2*KOEF!$C$7^3) -> 1.212501039e+14 | R91: =D91*KOEF!$C$7/KOEF!$C$6 -> 1651.483004 | S91: =D91*KOEF!$L$28 -> 743.1673517 | U91: 0 | V91: 0
D92: 391090.29 | H92: =D92*KOEF!$C$7 -> 391.09029 | I92: =D92^2*(KOEF!$C$7*(1-KOEF!$C$7)) -> 152798663.3 | J92: =D92^3*(KOEF!$C$7-3*KOEF!$C$7^2+2*KOEF!$C$7^3) -> 5.963855742e+13 | L92: 391090.29 | M92: =L92*KOEF!$C$7 -> 391.09029 | N92: =L92^2*(KOEF!$C$7*(1-KOEF!$C$7)) -> 152798663.3 | O92: =L92^3*(KOEF!$C$7-3*KOEF!$C$7^2+2*KOEF!$C$7^3) -> 5.963855742e+13 | R92: =D92*KOEF!$C$7/KOEF!$C$6 -> 1303.6343 | S92: =D92*KOEF!$L$28 -> 586.6354351 | U92: 0 | V92: 0
D93: 222631.4153 | H93: =D93*KOEF!$C$7 -> 222.6314153 | I93: =D93^2*(KOEF!$C$7*(1-KOEF!$C$7)) -> 49515182.31 | J93: =D93^3*(KOEF!$C$7-3*KOEF!$C$7^2+2*KOEF!$C$7^3) -> 1.100158784e+13 | L93: 222631.4153 | M93: =L93*KOEF!$C$7 -> 222.6314153 | N93: =L93^2*(KOEF!$C$7*(1-KOEF!$C$7)) -> 49515182.31 | O93: =L93^3*(KOEF!$C$7-3*KOEF!$C$7^2+2*KOEF!$C$7^3) -> 1.100158784e+13 | R93: =D93*KOEF!$C$7/KOEF!$C$6 -> 742.1047175 | S93: =D93*KOEF!$L$28 -> 333.9471229 | U93: 0 | V93: 0
D94: 141599.5562 | H94: =D94*KOEF!$C$7 -> 141.5995562 | I94: =D94^2*(KOEF!$C$7*(1-KOEF!$C$7)) -> 20030383.89 | J94: =D94^3*(KOEF!$C$7-3*KOEF!$C$7^2+2*KOEF!$C$7^3) -> 2.830620882e+12 | L94: 141599.5562 | M94: =L94*KOEF!$C$7 -> 141.5995562 | N94: =L94^2*(KOEF!$C$7*(1-KOEF!$C$7)) -> 20030383.89 | O94: =L94^3*(KOEF!$C$7-3*KOEF!$C$7^2+2*KOEF!$C$7^3) -> 2.830620882e+12 | R94: =D94*KOEF!$C$7/KOEF!$C$6 -> 471.9985207 | S94: =D94*KOEF!$L$28 -> 212.3993343 | U94: 0 | V94: 0
D95: 141615.1684 | H95: =D95*KOEF!$C$7 -> 141.6151684 | I95: =D95^2*(KOEF!$C$7*(1-KOEF!$C$7)) -> 20034801.07 | J95: =D95^3*(KOEF!$C$7-3*KOEF!$C$7^2+2*KOEF!$C$7^3) -> 2.831557265e+12 | L95: 141615.1684 | M95: =L95*KOEF!$C$7 -> 141.6151684 | N95: =L95^2*(KOEF!$C$7*(1-KOEF!$C$7)) -> 20034801.07 | O95: =L95^3*(KOEF!$C$7-3*KOEF!$C$7^2+2*KOEF!$C$7^3) -> 2.831557265e+12 | R95: =D95*KOEF!$C$7/KOEF!$C$6 -> 472.0505614 | S95: =D95*KOEF!$L$28 -> 212.4227526 | U95: 0 | V95: 0
D96: 134079.2696 | H96: =D96*KOEF!$C$7 -> 134.0792696 | I96: =D96^2*(KOEF!$C$7*(1-KOEF!$C$7)) -> 17959273.29 | J96: =D96^3*(KOEF!$C$7-3*KOEF!$C$7^2+2*KOEF!$C$7^3) -> 2.403150312e+12 | L96: 134079.2696 | M96: =L96*KOEF!$C$7 -> 134.0792696 | N96: =L96^2*(KOEF!$C$7*(1-KOEF!$C$7)) -> 17959273.29 | O96: =L96^3*(KOEF!$C$7-3*KOEF!$C$7^2+2*KOEF!$C$7^3) -> 2.403150312e+12 | R96: =D96*KOEF!$C$7/KOEF!$C$6 -> 446.9308987 | S96: =D96*KOEF!$L$28 -> 201.1189044 | U96: 0 | V96: 0
D97: 308301.5995 | H97: =D97*KOEF!$C$7 -> 308.3015995 | I97: =D97^2*(KOEF!$C$7*(1-KOEF!$C$7)) -> 94954826.36 | J97: =D97^3*(KOEF!$C$7-3*KOEF!$C$7^2+2*KOEF!$C$7^3) -> 2.921617539e+13 | L97: 308301.5995 | M97: =L97*KOEF!$C$7 -> 308.3015995 | N97: =L97^2*(KOEF!$C$7*(1-KOEF!$C$7)) -> 94954826.36 | O97: =L97^3*(KOEF!$C$7-3*KOEF!$C$7^2+2*KOEF!$C$7^3) -> 2.921617539e+13 | R97: =D97*KOEF!$C$7/KOEF!$C$6 -> 1027.671998 | S97: =D97*KOEF!$L$28 -> 462.4523992 | U97: 0 | V97: 0
D98: 119580.6331 | H98: =D98*KOEF!$C$7 -> 119.5806331 | I98: =D98^2*(KOEF!$C$7*(1-KOEF!$C$7)) -> 14285228.28 | J98: =D98^3*(KOEF!$C$7-3*KOEF!$C$7^2+2*KOEF!$C$7^3) -> 1.704820167e+12 | L98: 119580.6331 | M98: =L98*KOEF!$C$7 -> 119.5806331 | N98: =L98^2*(KOEF!$C$7*(1-KOEF!$C$7)) -> 14285228.28 | O98: =L98^3*(KOEF!$C$7-3*KOEF!$C$7^2+2*KOEF!$C$7^3) -> 1.704820167e+12 | R98: =D98*KOEF!$C$7/KOEF!$C$6 -> 398.6021102 | S98: =D98*KOEF!$L$28 -> 179.3709496 | U98: 0 | V98: 0
D99: 999125.7037 | H99: =D99*KOEF!$C$7 -> 999.1257037 | I99: =D99^2*(KOEF!$C$7*(1-KOEF!$C$7)) -> 997253919.6 | J99: =D99^3*(KOEF!$C$7-3*KOEF!$C$7^2+2*KOEF!$C$7^3) -> 994389260155951 | L99: 999125.7037 | M99: =L99*KOEF!$C$7 -> 999.1257037 | N99: =L99^2*(KOEF!$C$7*(1-KOEF!$C$7)) -> 997253919.6 | O99: =L99^3*(KOEF!$C$7-3*KOEF!$C$7^2+2*KOEF!$C$7^3) -> 994389260155951 | R99: =D99*KOEF!$C$7/KOEF!$C$6 -> 3330.419012 | S99: =D99*KOEF!$L$28 -> 1498.688556 | U99: 0 | V99: 0
D100: 147570.8966 | H100: =D100*KOEF!$C$7 -> 147.5708966 | I100: =D100^2*(KOEF!$C$7*(1-KOEF!$C$7)) -> 21755392.35 | J100: =D100^3*(KOEF!$C$7-3*KOEF!$C$7^2+2*KOEF!$C$7^3) -> 3.204041828e+12 | L100: 147570.8966 | M100: =L100*KOEF!$C$7 -> 147.5708966 | N100: =L100^2*(KOEF!$C$7*(1-KOEF!$C$7)) -> 21755392.35 | O100: =L100^3*(KOEF!$C$7-3*KOEF!$C$7^2+2*KOEF!$C$7^3) -> 3.204041828e+12 | R100: =D100*KOEF!$C$7/KOEF!$C$6 -> 491.9029886 | S100: =D100*KOEF!$L$28 -> 221.3563449 | U100: 0 | V100: 0
D101: 129453.8549 | H101: =D101*KOEF!$C$7 -> 129.4538549 | I101: =D101^2*(KOEF!$C$7*(1-KOEF!$C$7)) -> 16741542.24 | J101: =D101^3*(KOEF!$C$7-3*KOEF!$C$7^2+2*KOEF!$C$7^3) -> 2.162922665e+12 | L101: 129453.8549 | M101: =L101*KOEF!$C$7 -> 129.4538549 | N101: =L101^2*(KOEF!$C$7*(1-KOEF!$C$7)) -> 16741542.24 | O101: =L101^3*(KOEF!$C$7-3*KOEF!$C$7^2+2*KOEF!$C$7^3) -> 2.162922665e+12 | R101: =D101*KOEF!$C$7/KOEF!$C$6 -> 431.5128496 | S101: =D101*KOEF!$L$28 -> 194.1807823 | U101: 0 | V101: 0
D102: 153521.2517 | H102: =D102*KOEF!$C$7 -> 153.5212517 | I102: =D102^2*(KOEF!$C$7*(1-KOEF!$C$7)) -> 23545205.96 | J102: =D102^3*(KOEF!$C$7-3*KOEF!$C$7^2+2*KOEF!$C$7^3) -> 3.607460113e+12 | L102: 153521.2517 | M102: =L102*KOEF!$C$7 -> 153.5212517 | N102: =L102^2*(KOEF!$C$7*(1-KOEF!$C$7)) -> 23545205.96 | O102: =L102^3*(KOEF!$C$7-3*KOEF!$C$7^2+2*KOEF!$C$7^3) -> 3.607460113e+12 | R102: =D102*KOEF!$C$7/KOEF!$C$6 -> 511.7375058 | S102: =D102*KOEF!$L$28 -> 230.2818776 | U102: 0 | V102: 0
D103: 194542.9014 | H103: =D103*KOEF!$C$7 -> 194.5429014 | I103: =D103^2*(KOEF!$C$7*(1-KOEF!$C$7)) -> 37809093.53 | J103: =D103^3*(KOEF!$C$7-3*KOEF!$C$7^2+2*KOEF!$C$7^3) -> 7.340779773e+12 | L103: 194542.9014 | M103: =L103*KOEF!$C$7 -> 194.5429014 | N103: =L103^2*(KOEF!$C$7*(1-KOEF!$C$7)) -> 37809093.53 | O103: =L103^3*(KOEF!$C$7-3*KOEF!$C$7^2+2*KOEF!$C$7^3) -> 7.340779773e+12 | R103: =D103*KOEF!$C$7/KOEF!$C$6 -> 648.4763379 | S103: =D103*KOEF!$L$28 -> 291.8143521 | U103: 0 | V103: 0
D104: 178621.5839 | H104: =D104*KOEF!$C$7 -> 178.6215839 | I104: =D104^2*(KOEF!$C$7*(1-KOEF!$C$7)) -> 31873764.56 | J104: =D104^3*(KOEF!$C$7-3*KOEF!$C$7^2+2*KOEF!$C$7^3) -> 5.681955625e+12 | L104: 178621.5839 | M104: =L104*KOEF!$C$7 -> 178.6215839 | N104: =L104^2*(KOEF!$C$7*(1-KOEF!$C$7)) -> 31873764.56 | O104: =L104^3*(KOEF!$C$7-3*KOEF!$C$7^2+2*KOEF!$C$7^3) -> 5.681955625e+12 | R104: =D104*KOEF!$C$7/KOEF!$C$6 -> 595.4052796 | S104: =D104*KOEF!$L$28 -> 267.9323758 | U104: 0 | V104: 0
D105: 416882.085 | H105: =D105*KOEF!$C$7 -> 416.882085 | I105: =D105^2*(KOEF!$C$7*(1-KOEF!$C$7)) -> 173616882.1 | J105: =D105^3*(KOEF!$C$7-3*KOEF!$C$7^2+2*KOEF!$C$7^3) -> 7.223301227e+13 | L105: 416882.085 | M105: =L105*KOEF!$C$7 -> 416.882085 | N105: =L105^2*(KOEF!$C$7*(1-KOEF!$C$7)) -> 173616882.1 | O105: =L105^3*(KOEF!$C$7-3*KOEF!$C$7^2+2*KOEF!$C$7^3) -> 7.223301227e+13 | R105: =D105*KOEF!$C$7/KOEF!$C$6 -> 1389.60695 | S105: =D105*KOEF!$L$28 -> 625.3231275 | U105: 0 | V105: 0
D106: 184677.5729 | H106: =D106*KOEF!$C$7 -> 184.6775729 | I106: =D106^2*(KOEF!$C$7*(1-KOEF!$C$7)) -> 34071700.14 | J106: =D106^3*(KOEF!$C$7-3*KOEF!$C$7^2+2*KOEF!$C$7^3) -> 6.27969433e+12 | L106: 184677.5729 | M106: =L106*KOEF!$C$7 -> 184.6775729 | N106: =L106^2*(KOEF!$C$7*(1-KOEF!$C$7)) -> 34071700.14 | O106: =L106^3*(KOEF!$C$7-3*KOEF!$C$7^2+2*KOEF!$C$7^3) -> 6.27969433e+12 | R106: =D106*KOEF!$C$7/KOEF!$C$6 -> 615.5919098 | S106: =D106*KOEF!$L$28 -> 277.0163594 | U106: 0 | V106: 0
D107: 134309.8332 | H107: =D107*KOEF!$C$7 -> 134.3098332 | I107: =D107^2*(KOEF!$C$7*(1-KOEF!$C$7)) -> 18021092.15 | J107: =D107^3*(KOEF!$C$7-3*KOEF!$C$7^2+2*KOEF!$C$7^3) -> 2.415569061e+12 | L107: 134309.8332 | M107: =L107*KOEF!$C$7 -> 134.3098332 | N107: =L107^2*(KOEF!$C$7*(1-KOEF!$C$7)) -> 18021092.15 | O107: =L107^3*(KOEF!$C$7-3*KOEF!$C$7^2+2*KOEF!$C$7^3) -> 2.415569061e+12 | R107: =D107*KOEF!$C$7/KOEF!$C$6 -> 447.6994439 | S107: =D107*KOEF!$L$28 -> 201.4647498 | U107: 0 | V107: 0
D108: 377074.5941 | H108: =D108*KOEF!$C$7 -> 377.0745941 | I108: =D108^2*(KOEF!$C$7*(1-KOEF!$C$7)) -> 142043064.3 | J108: =D108^3*(KOEF!$C$7-3*KOEF!$C$7^2+2*KOEF!$C$7^3) -> 5.345370914e+13 | L108: 377074.5941 | M108: =L108*KOEF!$C$7 -> 377.0745941 | N108: =L108^2*(KOEF!$C$7*(1-KOEF!$C$7)) -> 142043064.3 | O108: =L108^3*(KOEF!$C$7-3*KOEF!$C$7^2+2*KOEF!$C$7^3) -> 5.345370914e+13 | R108: =D108*KOEF!$C$7/KOEF!$C$6 -> 1256.915314 | S108: =D108*KOEF!$L$28 -> 565.6118912 | U108: 0 | V108: 0
D109: 186043.8089 | H109: =D109*KOEF!$C$7 -> 186.0438089 | I109: =D109^2*(KOEF!$C$7*(1-KOEF!$C$7)) -> 34577686.54 | J109: =D109^3*(KOEF!$C$7-3*KOEF!$C$7^2+2*KOEF!$C$7^3) -> 6.420098578e+12 | L109: 186043.8089 | M109: =L109*KOEF!$C$7 -> 186.0438089 | N109: =L109^2*(KOEF!$C$7*(1-KOEF!$C$7)) -> 34577686.54 | O109: =L109^3*(KOEF!$C$7-3*KOEF!$C$7^2+2*KOEF!$C$7^3) -> 6.420098578e+12 | R109: =D109*KOEF!$C$7/KOEF!$C$6 -> 620.1460297 | S109: =D109*KOEF!$L$28 -> 279.0657134 | U109: 0 | V109: 0
D110: 307732.0099 | H110: =D110*KOEF!$C$7 -> 307.7320099 | I110: =D110^2*(KOEF!$C$7*(1-KOEF!$C$7)) -> 94604290.92 | J110: =D110^3*(KOEF!$C$7-3*KOEF!$C$7^2+2*KOEF!$C$7^3) -> 2.905454305e+13 | L110: 307732.0099 | M110: =L110*KOEF!$C$7 -> 307.7320099 | N110: =L110^2*(KOEF!$C$7*(1-KOEF!$C$7)) -> 94604290.92 | O110: =L110^3*(KOEF!$C$7-3*KOEF!$C$7^2+2*KOEF!$C$7^3) -> 2.905454305e+13 | R110: =D110*KOEF!$C$7/KOEF!$C$6 -> 1025.773366 | S110: =D110*KOEF!$L$28 -> 461.5980148 | U110: 0 | V110: 0
D111: 483219.063 | H111: =D111*KOEF!$C$7 -> 483.219063 | I111: =D111^2*(KOEF!$C$7*(1-KOEF!$C$7)) -> 233267162.2 | J111: =D111^3*(KOEF!$C$7-3*KOEF!$C$7^2+2*KOEF!$C$7^3) -> 1.124937013e+14 | L111: 483219.063 | M111: =L111*KOEF!$C$7 -> 483.219063 | N111: =L111^2*(KOEF!$C$7*(1-KOEF!$C$7)) -> 233267162.2 | O111: =L111^3*(KOEF!$C$7-3*KOEF!$C$7^2+2*KOEF!$C$7^3) -> 1.124937013e+14 | R111: =D111*KOEF!$C$7/KOEF!$C$6 -> 1610.73021 | S111: =D111*KOEF!$L$28 -> 724.8285945 | U111: 0 | V111: 0
D112: 132543.3395 | H112: =D112*KOEF!$C$7 -> 132.5433395 | I112: =D112^2*(KOEF!$C$7*(1-KOEF!$C$7)) -> 17550169.12 | J112: =D112^3*(KOEF!$C$7-3*KOEF!$C$7^2+2*KOEF!$C$7^3) -> 2.321505708e+12 | L112: 132543.3395 | M112: =L112*KOEF!$C$7 -> 132.5433395 | N112: =L112^2*(KOEF!$C$7*(1-KOEF!$C$7)) -> 17550169.12 | O112: =L112^3*(KOEF!$C$7-3*KOEF!$C$7^2+2*KOEF!$C$7^3) -> 2.321505708e+12 | R112: =D112*KOEF!$C$7/KOEF!$C$6 -> 441.8111318 | S112: =D112*KOEF!$L$28 -> 198.8150093 | U112: 0 | V112: 0
D113: 413844.8371 | H113: =D113*KOEF!$C$7 -> 413.8448371 | I113: =D113^2*(KOEF!$C$7*(1-KOEF!$C$7)) -> 171096281.7 | J113: =D113^3*(KOEF!$C$7-3*KOEF!$C$7^2+2*KOEF!$C$7^3) -> 7.06656982e+13 | L113: 413844.8371 | M113: =L113*KOEF!$C$7 -> 413.8448371 | N113: =L113^2*(KOEF!$C$7*(1-KOEF!$C$7)) -> 171096281.7 | O113: =L113^3*(KOEF!$C$7-3*KOEF!$C$7^2+2*KOEF!$C$7^3) -> 7.06656982e+13 | R113: =D113*KOEF!$C$7/KOEF!$C$6 -> 1379.48279 | S113: =D113*KOEF!$L$28 -> 620.7672557 | U113: 0 | V113: 0
D114: 130401.8788 | H114: =D114*KOEF!$C$7 -> 130.4018788 | I114: =D114^2*(KOEF!$C$7*(1-KOEF!$C$7)) -> 16987645.35 | J114: =D114^3*(KOEF!$C$7-3*KOEF!$C$7^2+2*KOEF!$C$7^3) -> 2.210790428e+12 | L114: 130401.8788 | M114: =L114*KOEF!$C$7 -> 130.4018788 | N114: =L114^2*(KOEF!$C$7*(1-KOEF!$C$7)) -> 16987645.35 | O114: =L114^3*(KOEF!$C$7-3*KOEF!$C$7^2+2*KOEF!$C$7^3) -> 2.210790428e+12 | R114: =D114*KOEF!$C$7/KOEF!$C$6 -> 434.6729294 | S114: =D114*KOEF!$L$28 -> 195.6028182 | U114: 0 | V114: 0
D115: 178865.8926 | H115: =D115*KOEF!$C$7 -> 178.8658926 | I115: =D115^2*(KOEF!$C$7*(1-KOEF!$C$7)) -> 31961014.52 | J115: =D115^3*(KOEF!$C$7-3*KOEF!$C$7^2+2*KOEF!$C$7^3) -> 5.70530192e+12 | L115: 178865.8926 | M115: =L115*KOEF!$C$7 -> 178.8658926 | N115: =L115^2*(KOEF!$C$7*(1-KOEF!$C$7)) -> 31961014.52 | O115: =L115^3*(KOEF!$C$7-3*KOEF!$C$7^2+2*KOEF!$C$7^3) -> 5.70530192e+12 | R115: =D115*KOEF!$C$7/KOEF!$C$6 -> 596.219642 | S115: =D115*KOEF!$L$28 -> 268.2988389 | U115: 0 | V115: 0
D116: 164279.9963 | H116: =D116*KOEF!$C$7 -> 164.2799963 | I116: =D116^2*(KOEF!$C$7*(1-KOEF!$C$7)) -> 26960929.26 | J116: =D116^3*(KOEF!$C$7-3*KOEF!$C$7^2+2*KOEF!$C$7^3) -> 4.420283076e+12 | L116: 164279.9963 | M116: =L116*KOEF!$C$7 -> 164.2799963 | N116: =L116^2*(KOEF!$C$7*(1-KOEF!$C$7)) -> 26960929.26 | O116: =L116^3*(KOEF!$C$7-3*KOEF!$C$7^2+2*KOEF!$C$7^3) -> 4.420283076e+12 | R116: =D116*KOEF!$C$7/KOEF!$C$6 -> 547.5999876 | S116: =D116*KOEF!$L$28 -> 246.4199944 | U116: 0 | V116: 0
D117: 1303470.321 | H117: =D117*KOEF!$C$7 -> 1303.470321 | I117: =D117^2*(KOEF!$C$7*(1-KOEF!$C$7)) -> 1697335842 | J117: =D117^3*(KOEF!$C$7-3*KOEF!$C$7^2+2*KOEF!$C$7^3) -> 2.208002041e+15 | L117: 1303470.321 | M117: =L117*KOEF!$C$7 -> 1303.470321 | N117: =L117^2*(KOEF!$C$7*(1-KOEF!$C$7)) -> 1697335842 | O117: =L117^3*(KOEF!$C$7-3*KOEF!$C$7^2+2*KOEF!$C$7^3) -> 2.208002041e+15 | R117: =D117*KOEF!$C$7/KOEF!$C$6 -> 4344.901069 | S117: =D117*KOEF!$L$28 -> 1955.205481 | U117: 0 | V117: 0
D118: 170055.0131 | H118: =D118*KOEF!$C$7 -> 170.0550131 | I118: =D118^2*(KOEF!$C$7*(1-KOEF!$C$7)) -> 28889788.76 | J118: =D118^3*(KOEF!$C$7-3*KOEF!$C$7^2+2*KOEF!$C$7^3) -> 4.903027698e+12 | L118: 170055.0131 | M118: =L118*KOEF!$C$7 -> 170.0550131 | N118: =L118^2*(KOEF!$C$7*(1-KOEF!$C$7)) -> 28889788.76 | O118: =L118^3*(KOEF!$C$7-3*KOEF!$C$7^2+2*KOEF!$C$7^3) -> 4.903027698e+12 | R118: =D118*KOEF!$C$7/KOEF!$C$6 -> 566.8500435 | S118: =D118*KOEF!$L$28 -> 255.0825196 | U118: 0 | V118: 0
D119: 269802.4212 | H119: =D119*KOEF!$C$7 -> 269.8024212 | I119: =D119^2*(KOEF!$C$7*(1-KOEF!$C$7)) -> 72720553.15 | J119: =D119^3*(KOEF!$C$7-3*KOEF!$C$7^2+2*KOEF!$C$7^3) -> 1.958094095e+13 | L119: 269802.4212 | M119: =L119*KOEF!$C$7 -> 269.8024212 | N119: =L119^2*(KOEF!$C$7*(1-KOEF!$C$7)) -> 72720553.15 | O119: =L119^3*(KOEF!$C$7-3*KOEF!$C$7^2+2*KOEF!$C$7^3) -> 1.958094095e+13 | R119: =D119*KOEF!$C$7/KOEF!$C$6 -> 899.3414041 | S119: =D119*KOEF!$L$28 -> 404.7036318 | U119: 0 | V119: 0
D120: 206568.1711 | H120: =D120*KOEF!$C$7 -> 206.5681711 | I120: =D120^2*(KOEF!$C$7*(1-KOEF!$C$7)) -> 42627738.89 | J120: =D120^3*(KOEF!$C$7-3*KOEF!$C$7^2+2*KOEF!$C$7^3) -> 8.78792299e+12 | L120: 206568.1711 | M120: =L120*KOEF!$C$7 -> 206.5681711 | N120: =L120^2*(KOEF!$C$7*(1-KOEF!$C$7)) -> 42627738.89 | O120: =L120^3*(KOEF!$C$7-3*KOEF!$C$7^2+2*KOEF!$C$7^3) -> 8.78792299e+12 | R120: =D120*KOEF!$C$7/KOEF!$C$6 -> 688.5605702 | S120: =D120*KOEF!$L$28 -> 309.8522566 | U120: 0 | V120: 0
D121: 109484.3954 | H121: =D121*KOEF!$C$7 -> 109.4843954 | I121: =D121^2*(KOEF!$C$7*(1-KOEF!$C$7)) -> 11974846 | J121: =D121^3*(KOEF!$C$7-3*KOEF!$C$7^2+2*KOEF!$C$7^3) -> 1.308436657e+12 | L121: 109484.3954 | M121: =L121*KOEF!$C$7 -> 109.4843954 | N121: =L121^2*(KOEF!$C$7*(1-KOEF!$C$7)) -> 11974846 | O121: =L121^3*(KOEF!$C$7-3*KOEF!$C$7^2+2*KOEF!$C$7^3) -> 1.308436657e+12 | R121: =D121*KOEF!$C$7/KOEF!$C$6 -> 364.9479847 | S121: =D121*KOEF!$L$28 -> 164.2265931 | U121: 0 | V121: 0
D122: 166761.4956 | H122: =D122*KOEF!$C$7 -> 166.7614956 | I122: =D122^2*(KOEF!$C$7*(1-KOEF!$C$7)) -> 27781587 | J122: =D122^3*(KOEF!$C$7-3*KOEF!$C$7^2+2*KOEF!$C$7^3) -> 4.623633199e+12 | L122: 166761.4956 | M122: =L122*KOEF!$C$7 -> 166.7614956 | N122: =L122^2*(KOEF!$C$7*(1-KOEF!$C$7)) -> 27781587 | O122: =L122^3*(KOEF!$C$7-3*KOEF!$C$7^2+2*KOEF!$C$7^3) -> 4.623633199e+12 | R122: =D122*KOEF!$C$7/KOEF!$C$6 -> 555.8716518 | S122: =D122*KOEF!$L$28 -> 250.1422433 | U122: 0 | V122: 0
D123: 117023.0243 | H123: =D123*KOEF!$C$7 -> 117.0230243 | I123: =D123^2*(KOEF!$C$7*(1-KOEF!$C$7)) -> 13680693.82 | J123: =D123^3*(KOEF!$C$7-3*KOEF!$C$7^2+2*KOEF!$C$7^3) -> 1.597754253e+12 | L123: 117023.0243 | M123: =L123*KOEF!$C$7 -> 117.0230243 | N123: =L123^2*(KOEF!$C$7*(1-KOEF!$C$7)) -> 13680693.82 | O123: =L123^3*(KOEF!$C$7-3*KOEF!$C$7^2+2*KOEF!$C$7^3) -> 1.597754253e+12 | R123: =D123*KOEF!$C$7/KOEF!$C$6 -> 390.0767476 | S123: =D123*KOEF!$L$28 -> 175.5345364 | U123: 0 | V123: 0
D124: 229842.6797 | H124: =D124*KOEF!$C$7 -> 229.8426797 | I124: =D124^2*(KOEF!$C$7*(1-KOEF!$C$7)) -> 52774829.77 | J124: =D124^3*(KOEF!$C$7-3*KOEF!$C$7^2+2*KOEF!$C$7^3) -> 1.210564848e+13 | L124: 229842.6797 | M124: =L124*KOEF!$C$7 -> 229.8426797 | N124: =L124^2*(KOEF!$C$7*(1-KOEF!$C$7)) -> 52774829.77 | O124: =L124^3*(KOEF!$C$7-3*KOEF!$C$7^2+2*KOEF!$C$7^3) -> 1.210564848e+13 | R124: =D124*KOEF!$C$7/KOEF!$C$6 -> 766.1422658 | S124: =D124*KOEF!$L$28 -> 344.7640196 | U124: 0 | V124: 0
D125: 293462.6787 | H125: =D125*KOEF!$C$7 -> 293.4626787 | I125: =D125^2*(KOEF!$C$7*(1-KOEF!$C$7)) -> 86034223.42 | J125: =D125^3*(KOEF!$C$7-3*KOEF!$C$7^2+2*KOEF!$C$7^3) -> 2.519733799e+13 | L125: 293462.6787 | M125: =L125*KOEF!$C$7 -> 293.4626787 | N125: =L125^2*(KOEF!$C$7*(1-KOEF!$C$7)) -> 86034223.42 | O125: =L125^3*(KOEF!$C$7-3*KOEF!$C$7^2+2*KOEF!$C$7^3) -> 2.519733799e+13 | R125: =D125*KOEF!$C$7/KOEF!$C$6 -> 978.2089289 | S125: =D125*KOEF!$L$28 -> 440.194018 | U125: 0 | V125: 0
D126: 160134.5863 | H126: =D126*KOEF!$C$7 -> 160.1345863 | I126: =D126^2*(KOEF!$C$7*(1-KOEF!$C$7)) -> 25617442.64 | J126: =D126^3*(KOEF!$C$7-3*KOEF!$C$7^2+2*KOEF!$C$7^3) -> 4.094034101e+12 | L126: 160134.5863 | M126: =L126*KOEF!$C$7 -> 160.1345863 | N126: =L126^2*(KOEF!$C$7*(1-KOEF!$C$7)) -> 25617442.64 | O126: =L126^3*(KOEF!$C$7-3*KOEF!$C$7^2+2*KOEF!$C$7^3) -> 4.094034101e+12 | R126: =D126*KOEF!$C$7/KOEF!$C$6 -> 533.7819543 | S126: =D126*KOEF!$L$28 -> 240.2018794 | U126: 0 | V126: 0
D127: 128724.2947 | H127: =D127*KOEF!$C$7 -> 128.7242947 | I127: =D127^2*(KOEF!$C$7*(1-KOEF!$C$7)) -> 16553374.09 | J127: =D127^3*(KOEF!$C$7-3*KOEF!$C$7^2+2*KOEF!$C$7^3) -> 2.126559761e+12 | L127: 128724.2947 | M127: =L127*KOEF!$C$7 -> 128.7242947 | N127: =L127^2*(KOEF!$C$7*(1-KOEF!$C$7)) -> 16553374.09 | O127: =L127^3*(KOEF!$C$7-3*KOEF!$C$7^2+2*KOEF!$C$7^3) -> 2.126559761e+12 | R127: =D127*KOEF!$C$7/KOEF!$C$6 -> 429.0809822 | S127: =D127*KOEF!$L$28 -> 193.086442 | U127: 0 | V127: 0
D128: 170972.9737 | H128: =D128*KOEF!$C$7 -> 170.9729737 | I128: =D128^2*(KOEF!$C$7*(1-KOEF!$C$7)) -> 29202525.97 | J128: =D128^3*(KOEF!$C$7-3*KOEF!$C$7^2+2*KOEF!$C$7^3) -> 4.98285702e+12 | L128: 170972.9737 | M128: =L128*KOEF!$C$7 -> 170.9729737 | N128: =L128^2*(KOEF!$C$7*(1-KOEF!$C$7)) -> 29202525.97 | O128: =L128^3*(KOEF!$C$7-3*KOEF!$C$7^2+2*KOEF!$C$7^3) -> 4.98285702e+12 | R128: =D128*KOEF!$C$7/KOEF!$C$6 -> 569.9099123 | S128: =D128*KOEF!$L$28 -> 256.4594605 | U128: 0 | V128: 0
D129: 101723.6097 | H129: =D129*KOEF!$C$7 -> 101.7236097 | I129: =D129^2*(KOEF!$C$7*(1-KOEF!$C$7)) -> 10337345.07 | J129: =D129^3*(KOEF!$C$7-3*KOEF!$C$7^2+2*KOEF!$C$7^3) -> 1.049448951e+12 | L129: 101723.6097 | M129: =L129*KOEF!$C$7 -> 101.7236097 | N129: =L129^2*(KOEF!$C$7*(1-KOEF!$C$7)) -> 10337345.07 | O129: =L129^3*(KOEF!$C$7-3*KOEF!$C$7^2+2*KOEF!$C$7^3) -> 1.049448951e+12 | R129: =D129*KOEF!$C$7/KOEF!$C$6 -> 339.0786989 | S129: =D129*KOEF!$L$28 -> 152.5854145 | U129: 0 | V129: 0
D130: 118026.3182 | H130: =D130*KOEF!$C$7 -> 118.0263182 | I130: =D130^2*(KOEF!$C$7*(1-KOEF!$C$7)) -> 13916281.58 | J130: =D130^3*(KOEF!$C$7-3*KOEF!$C$7^2+2*KOEF!$C$7^3) -> 1.639202504e+12 | L130: 118026.3182 | M130: =L130*KOEF!$C$7 -> 118.0263182 | N130: =L130^2*(KOEF!$C$7*(1-KOEF!$C$7)) -> 13916281.58 | O130: =L130^3*(KOEF!$C$7-3*KOEF!$C$7^2+2*KOEF!$C$7^3) -> 1.639202504e+12 | R130: =D130*KOEF!$C$7/KOEF!$C$6 -> 393.4210608 | S130: =D130*KOEF!$L$28 -> 177.0394774 | U130: 0 | V130: 0
D131: 215199.3332 | H131: =D131*KOEF!$C$7 -> 215.1993332 | I131: =D131^2*(KOEF!$C$7*(1-KOEF!$C$7)) -> 46264442.28 | J131: =D131^3*(KOEF!$C$7-3*KOEF!$C$7^2+2*KOEF!$C$7^3) -> 9.936164976e+12 | L131: 215199.3332 | M131: =L131*KOEF!$C$7 -> 215.1993332 | N131: =L131^2*(KOEF!$C$7*(1-KOEF!$C$7)) -> 46264442.28 | O131: =L131^3*(KOEF!$C$7-3*KOEF!$C$7^2+2*KOEF!$C$7^3) -> 9.936164976e+12 | R131: =D131*KOEF!$C$7/KOEF!$C$6 -> 717.3311108 | S131: =D131*KOEF!$L$28 -> 322.7989999 | U131: 0 | V131: 0
D132: 269076.9727 | H132: =D132*KOEF!$C$7 -> 269.0769727 | I132: =D132^2*(KOEF!$C$7*(1-KOEF!$C$7)) -> 72330014.83 | J132: =D132^3*(KOEF!$C$7-3*KOEF!$C$7^2+2*KOEF!$C$7^3) -> 1.942341674e+13 | L132: 269076.9727 | M132: =L132*KOEF!$C$7 -> 269.0769727 | N132: =L132^2*(KOEF!$C$7*(1-KOEF!$C$7)) -> 72330014.83 | O132: =L132^3*(KOEF!$C$7-3*KOEF!$C$7^2+2*KOEF!$C$7^3) -> 1.942341674e+13 | R132: =D132*KOEF!$C$7/KOEF!$C$6 -> 896.9232424 | S132: =D132*KOEF!$L$28 -> 403.6154591 | U132: 0 | V132: 0
D133: 345802.9672 | H133: =D133*KOEF!$C$7 -> 345.8029672 | I133: =D133^2*(KOEF!$C$7*(1-KOEF!$C$7)) -> 119460112.4 | J133: =D133^3*(KOEF!$C$7-3*KOEF!$C$7^2+2*KOEF!$C$7^3) -> 4.122704201e+13 | L133: 345802.9672 | M133: =L133*KOEF!$C$7 -> 345.8029672 | N133: =L133^2*(KOEF!$C$7*(1-KOEF!$C$7)) -> 119460112.4 | O133: =L133^3*(KOEF!$C$7-3*KOEF!$C$7^2+2*KOEF!$C$7^3) -> 4.122704201e+13 | R133: =D133*KOEF!$C$7/KOEF!$C$6 -> 1152.676557 | S133: =D133*KOEF!$L$28 -> 518.7044508 | U133: =R133*MAX((D133-$P$1),0)/D133 -> 0 | V133: =S133*MAX((D133-$P$1),0)/D133 -> 0
D134: 267045.8918 | H134: =D134*KOEF!$C$7 -> 267.0458918 | I134: =D134^2*(KOEF!$C$7*(1-KOEF!$C$7)) -> 71242194.84 | J134: =D134^3*(KOEF!$C$7-3*KOEF!$C$7^2+2*KOEF!$C$7^3) -> 1.898688559e+13 | L134: =MIN(D134,$P$1) -> 267045.8918 | M134: =L134*KOEF!$C$7 -> 267.0458918 | N134: =L134^2*(KOEF!$C$7*(1-KOEF!$C$7)) -> 71242194.84 | O134: =L134^3*(KOEF!$C$7-3*KOEF!$C$7^2+2*KOEF!$C$7^3) -> 1.898688559e+13 | R134: =D134*KOEF!$C$7/KOEF!$C$6 -> 890.1529728 | S134: =D134*KOEF!$L$28 -> 400.5688378 | U134: 0 | V134: 0
D135: 121043.6938 | H135: =D135*KOEF!$C$7 -> 121.0436938 | I135: =D135^2*(KOEF!$C$7*(1-KOEF!$C$7)) -> 14636924.24 | J135: =D135^3*(KOEF!$C$7-3*KOEF!$C$7^2+2*KOEF!$C$7^3) -> 1.768163961e+12 | L135: 121043.6938 | M135: =L135*KOEF!$C$7 -> 121.0436938 | N135: =L135^2*(KOEF!$C$7*(1-KOEF!$C$7)) -> 14636924.24 | O135: =L135^3*(KOEF!$C$7-3*KOEF!$C$7^2+2*KOEF!$C$7^3) -> 1.768163961e+12 | R135: =D135*KOEF!$C$7/KOEF!$C$6 -> 403.4789794 | S135: =D135*KOEF!$L$28 -> 181.5655407 | U135: 0 | V135: 0
D136: 161614.1493 | H136: =D136*KOEF!$C$7 -> 161.6141493 | I136: =D136^2*(KOEF!$C$7*(1-KOEF!$C$7)) -> 26093014.13 | J136: =D136^3*(KOEF!$C$7-3*KOEF!$C$7^2+2*KOEF!$C$7^3) -> 4.208566281e+12 | L136: 161614.1493 | M136: =L136*KOEF!$C$7 -> 161.6141493 | N136: =L136^2*(KOEF!$C$7*(1-KOEF!$C$7)) -> 26093014.13 | O136: =L136^3*(KOEF!$C$7-3*KOEF!$C$7^2+2*KOEF!$C$7^3) -> 4.208566281e+12 | R136: =D136*KOEF!$C$7/KOEF!$C$6 -> 538.7138311 | S136: =D136*KOEF!$L$28 -> 242.421224 | U136: 0 | V136: 0
D137: 160990.2299 | H137: =D137*KOEF!$C$7 -> 160.9902299 | I137: =D137^2*(KOEF!$C$7*(1-KOEF!$C$7)) -> 25891936.28 | J137: =D137^3*(KOEF!$C$7-3*KOEF!$C$7^2+2*KOEF!$C$7^3) -> 4.160012079e+12 | L137: 160990.2299 | M137: =L137*KOEF!$C$7 -> 160.9902299 | N137: =L137^2*(KOEF!$C$7*(1-KOEF!$C$7)) -> 25891936.28 | O137: =L137^3*(KOEF!$C$7-3*KOEF!$C$7^2+2*KOEF!$C$7^3) -> 4.160012079e+12 | R137: =D137*KOEF!$C$7/KOEF!$C$6 -> 536.6340998 | S137: =D137*KOEF!$L$28 -> 241.4853449 | U137: 0 | V137: 0
D138: 772908.9648 | H138: =D138*KOEF!$C$7 -> 772.9089648 | I138: =D138^2*(KOEF!$C$7*(1-KOEF!$C$7)) -> 596790879.6 | J138: =D138^3*(KOEF!$C$7-3*KOEF!$C$7^2+2*KOEF!$C$7^3) -> 460342490919770 | L138: 772908.9648 | M138: =L138*KOEF!$C$7 -> 772.9089648 | N138: =L138^2*(KOEF!$C$7*(1-KOEF!$C$7)) -> 596790879.6 | O138: =L138^3*(KOEF!$C$7-3*KOEF!$C$7^2+2*KOEF!$C$7^3) -> 460342490919770 | R138: =D138*KOEF!$C$7/KOEF!$C$6 -> 2576.363216 | S138: =D138*KOEF!$L$28 -> 1159.363447 | U138: 0 | V138: 0
D139: 171380.0712 | H139: =D139*KOEF!$C$7 -> 171.3800712 | I139: =D139^2*(KOEF!$C$7*(1-KOEF!$C$7)) -> 29341757.66 | J139: =D139^3*(KOEF!$C$7-3*KOEF!$C$7^2+2*KOEF!$C$7^3) -> 5.018535331e+12 | L139: 171380.0712 | M139: =L139*KOEF!$C$7 -> 171.3800712 | N139: =L139^2*(KOEF!$C$7*(1-KOEF!$C$7)) -> 29341757.66 | O139: =L139^3*(KOEF!$C$7-3*KOEF!$C$7^2+2*KOEF!$C$7^3) -> 5.018535331e+12 | R139: =D139*KOEF!$C$7/KOEF!$C$6 -> 571.2669039 | S139: =D139*KOEF!$L$28 -> 257.0701067 | U139: 0 | V139: 0
D140: 293005.3262 | H140: =D140*KOEF!$C$7 -> 293.0053262 | I140: =D140^2*(KOEF!$C$7*(1-KOEF!$C$7)) -> 85766269.06 | J140: =D140^3*(KOEF!$C$7-3*KOEF!$C$7^2+2*KOEF!$C$7^3) -> 2.50797137e+13 | L140: 293005.3262 | M140: =L140*KOEF!$C$7 -> 293.0053262 | N140: =L140^2*(KOEF!$C$7*(1-KOEF!$C$7)) -> 85766269.06 | O140: =L140^3*(KOEF!$C$7-3*KOEF!$C$7^2+2*KOEF!$C$7^3) -> 2.50797137e+13 | R140: =D140*KOEF!$C$7/KOEF!$C$6 -> 976.6844207 | S140: =D140*KOEF!$L$28 -> 439.5079893 | U140: 0 | V140: 0
D141: 478529.1079 | H141: =D141*KOEF!$C$7 -> 478.5291079 | I141: =D141^2*(KOEF!$C$7*(1-KOEF!$C$7)) -> 228761117 | J141: =D141^3*(KOEF!$C$7-3*KOEF!$C$7^2+2*KOEF!$C$7^3) -> 1.092499155e+14 | L141: 478529.1079 | M141: =L141*KOEF!$C$7 -> 478.5291079 | N141: =L141^2*(KOEF!$C$7*(1-KOEF!$C$7)) -> 228761117 | O141: =L141^3*(KOEF!$C$7-3*KOEF!$C$7^2+2*KOEF!$C$7^3) -> 1.092499155e+14 | R141: =D141*KOEF!$C$7/KOEF!$C$6 -> 1595.097026 | S141: =D141*KOEF!$L$28 -> 717.7936618 | U141: 0 | V141: 0
D142: 144297.0598 | H142: =D142*KOEF!$C$7 -> 144.2970598 | I142: =D142^2*(KOEF!$C$7*(1-KOEF!$C$7)) -> 20800819.84 | J142: =D142^3*(KOEF!$C$7-3*KOEF!$C$7^2+2*KOEF!$C$7^3) -> 2.995494151e+12 | L142: 144297.0598 | M142: =L142*KOEF!$C$7 -> 144.2970598 | N142: =L142^2*(KOEF!$C$7*(1-KOEF!$C$7)) -> 20800819.84 | O142: =L142^3*(KOEF!$C$7-3*KOEF!$C$7^2+2*KOEF!$C$7^3) -> 2.995494151e+12 | R142: =D142*KOEF!$C$7/KOEF!$C$6 -> 480.9901995 | S142: =D142*KOEF!$L$28 -> 216.4455898 | U142: 0 | V142: 0
D143: 110260.3036 | H143: =D143*KOEF!$C$7 -> 110.2603036 | I143: =D143^2*(KOEF!$C$7*(1-KOEF!$C$7)) -> 12145177.21 | J143: =D143^3*(KOEF!$C$7-3*KOEF!$C$7^2+2*KOEF!$C$7^3) -> 1.336452665e+12 | L143: 110260.3036 | M143: =L143*KOEF!$C$7 -> 110.2603036 | N143: =L143^2*(KOEF!$C$7*(1-KOEF!$C$7)) -> 12145177.21 | O143: =L143^3*(KOEF!$C$7-3*KOEF!$C$7^2+2*KOEF!$C$7^3) -> 1.336452665e+12 | R143: =D143*KOEF!$C$7/KOEF!$C$6 -> 367.5343453 | S143: =D143*KOEF!$L$28 -> 165.3904554 | U143: 0 | V143: 0
D144: 141656.0475 | H144: =D144*KOEF!$C$7 -> 141.6560475 | I144: =D144^2*(KOEF!$C$7*(1-KOEF!$C$7)) -> 20046369.37 | J144: =D144^3*(KOEF!$C$7-3*KOEF!$C$7^2+2*KOEF!$C$7^3) -> 2.834010074e+12 | L144: 141656.0475 | M144: =L144*KOEF!$C$7 -> 141.6560475 | N144: =L144^2*(KOEF!$C$7*(1-KOEF!$C$7)) -> 20046369.37 | O144: =L144^3*(KOEF!$C$7-3*KOEF!$C$7^2+2*KOEF!$C$7^3) -> 2.834010074e+12 | R144: =D144*KOEF!$C$7/KOEF!$C$6 -> 472.1868252 | S144: =D144*KOEF!$L$28 -> 212.4840713 | U144: 0 | V144: 0
D145: 226960.002 | H145: =D145*KOEF!$C$7 -> 226.960002 | I145: =D145^2*(KOEF!$C$7*(1-KOEF!$C$7)) -> 51459331.66 | J145: =D145^3*(KOEF!$C$7-3*KOEF!$C$7^2+2*KOEF!$C$7^3) -> 1.16558516e+13 | L145: 226960.002 | M145: =L145*KOEF!$C$7 -> 226.960002 | N145: =L145^2*(KOEF!$C$7*(1-KOEF!$C$7)) -> 51459331.66 | O145: =L145^3*(KOEF!$C$7-3*KOEF!$C$7^2+2*KOEF!$C$7^3) -> 1.16558516e+13 | R145: =D145*KOEF!$C$7/KOEF!$C$6 -> 756.53334 | S145: =D145*KOEF!$L$28 -> 340.440003 | U145: 0 | V145: 0
D146: 430637.6731 | H146: =D146*KOEF!$C$7 -> 430.6376731 | I146: =D146^2*(KOEF!$C$7*(1-KOEF!$C$7)) -> 185263356.7 | J146: =D146^3*(KOEF!$C$7-3*KOEF!$C$7^2+2*KOEF!$C$7^3) -> 7.96218181e+13 | L146: 430637.6731 | M146: =L146*KOEF!$C$7 -> 430.6376731 | N146: =L146^2*(KOEF!$C$7*(1-KOEF!$C$7)) -> 185263356.7 | O146: =L146^3*(KOEF!$C$7-3*KOEF!$C$7^2+2*KOEF!$C$7^3) -> 7.96218181e+13 | R146: =D146*KOEF!$C$7/KOEF!$C$6 -> 1435.45891 | S146: =D146*KOEF!$L$28 -> 645.9565097 | U146: 0 | V146: 0
D147: 251970.95 | H147: =D147*KOEF!$C$7 -> 251.97095 | I147: =D147^2*(KOEF!$C$7*(1-KOEF!$C$7)) -> 63425870.31 | J147: =D147^3*(KOEF!$C$7-3*KOEF!$C$7^2+2*KOEF!$C$7^3) -> 1.594951385e+13 | L147: 251970.95 | M147: =L147*KOEF!$C$7 -> 251.97095 | N147: =L147^2*(KOEF!$C$7*(1-KOEF!$C$7)) -> 63425870.31 | O147: =L147^3*(KOEF!$C$7-3*KOEF!$C$7^2+2*KOEF!$C$7^3) -> 1.594951385e+13 | R147: =D147*KOEF!$C$7/KOEF!$C$6 -> 839.9031668 | S147: =D147*KOEF!$L$28 -> 377.9564251 | U147: 0 | V147: 0
D148: 341075.6695 | H148: =D148*KOEF!$C$7 -> 341.0756695 | I148: =D148^2*(KOEF!$C$7*(1-KOEF!$C$7)) -> 116216279.7 | J148: =D148^3*(KOEF!$C$7-3*KOEF!$C$7^2+2*KOEF!$C$7^3) -> 3.955926833e+13 | L148: 341075.6695 | M148: =L148*KOEF!$C$7 -> 341.0756695 | N148: =L148^2*(KOEF!$C$7*(1-KOEF!$C$7)) -> 116216279.7 | O148: =L148^3*(KOEF!$C$7-3*KOEF!$C$7^2+2*KOEF!$C$7^3) -> 3.955926833e+13 | R148: =D148*KOEF!$C$7/KOEF!$C$6 -> 1136.918898 | S148: =D148*KOEF!$L$28 -> 511.6135043 | U148: 0 | V148: 0
D149: 280084.6867 | H149: =D149*KOEF!$C$7 -> 280.0846867 | I149: =D149^2*(KOEF!$C$7*(1-KOEF!$C$7)) -> 78368984.28 | J149: =D149^3*(KOEF!$C$7-3*KOEF!$C$7^2+2*KOEF!$C$7^3) -> 2.19060525e+13 | L149: 280084.6867 | M149: =L149*KOEF!$C$7 -> 280.0846867 | N149: =L149^2*(KOEF!$C$7*(1-KOEF!$C$7)) -> 78368984.28 | O149: =L149^3*(KOEF!$C$7-3*KOEF!$C$7^2+2*KOEF!$C$7^3) -> 2.19060525e+13 | R149: =D149*KOEF!$C$7/KOEF!$C$6 -> 933.6156223 | S149: =D149*KOEF!$L$28 -> 420.12703 | U149: 0 | V149: 0
D150: 174893.5997 | H150: =D150*KOEF!$C$7 -> 174.8935997 | I150: =D150^2*(KOEF!$C$7*(1-KOEF!$C$7)) -> 30557183.46 | J150: =D150^3*(KOEF!$C$7-3*KOEF!$C$7^2+2*KOEF!$C$7^3) -> 5.333567301e+12 | L150: 174893.5997 | M150: =L150*KOEF!$C$7 -> 174.8935997 | N150: =L150^2*(KOEF!$C$7*(1-KOEF!$C$7)) -> 30557183.46 | O150: =L150^3*(KOEF!$C$7-3*KOEF!$C$7^2+2*KOEF!$C$7^3) -> 5.333567301e+12 | R150: =D150*KOEF!$C$7/KOEF!$C$6 -> 582.9786658 | S150: =D150*KOEF!$L$28 -> 262.3403996 | U150: 0 | V150: 0
D151: 130958.3367 | H151: =D151*KOEF!$C$7 -> 130.9583367 | I151: =D151^2*(KOEF!$C$7*(1-KOEF!$C$7)) -> 17132935.87 | J151: =D151^3*(KOEF!$C$7-3*KOEF!$C$7^2+2*KOEF!$C$7^3) -> 2.239213384e+12 | L151: 130958.3367 | M151: =L151*KOEF!$C$7 -> 130.9583367 | N151: =L151^2*(KOEF!$C$7*(1-KOEF!$C$7)) -> 17132935.87 | O151: =L151^3*(KOEF!$C$7-3*KOEF!$C$7^2+2*KOEF!$C$7^3) -> 2.239213384e+12 | R151: =D151*KOEF!$C$7/KOEF!$C$6 -> 436.5277891 | S151: =D151*KOEF!$L$28 -> 196.4375051 | U151: 0 | V151: 0
D152: 446563.6426 | H152: =D152*KOEF!$C$7 -> 446.5636426 | I152: =D152^2*(KOEF!$C$7*(1-KOEF!$C$7)) -> 199219667.8 | J152: =D152^3*(KOEF!$C$7-3*KOEF!$C$7^2+2*KOEF!$C$7^3) -> 8.878633201e+13 | L152: 446563.6426 | M152: =L152*KOEF!$C$7 -> 446.5636426 | N152: =L152^2*(KOEF!$C$7*(1-KOEF!$C$7)) -> 199219667.8 | O152: =L152^3*(KOEF!$C$7-3*KOEF!$C$7^2+2*KOEF!$C$7^3) -> 8.878633201e+13 | R152: =D152*KOEF!$C$7/KOEF!$C$6 -> 1488.545475 | S152: =D152*KOEF!$L$28 -> 669.8454639 | U152: 0 | V152: 0
D153: 237605.9857 | H153: =D153*KOEF!$C$7 -> 237.6059857 | I153: =D153^2*(KOEF!$C$7*(1-KOEF!$C$7)) -> 56400147.86 | J153: =D153^3*(KOEF!$C$7-3*KOEF!$C$7^2+2*KOEF!$C$7^3) -> 1.33742107e+13 | L153: 237605.9857 | M153: =L153*KOEF!$C$7 -> 237.6059857 | N153: =L153^2*(KOEF!$C$7*(1-KOEF!$C$7)) -> 56400147.86 | O153: =L153^3*(KOEF!$C$7-3*KOEF!$C$7^2+2*KOEF!$C$7^3) -> 1.33742107e+13 | R153: =D153*KOEF!$C$7/KOEF!$C$6 -> 792.0199525 | S153: =D153*KOEF!$L$28 -> 356.4089786 | U153: 0 | V153: 0
D154: 352382.8236 | H154: =D154*KOEF!$C$7 -> 352.3828236 | I154: =D154^2*(KOEF!$C$7*(1-KOEF!$C$7)) -> 124049480.7 | J154: =D154^3*(KOEF!$C$7-3*KOEF!$C$7^2+2*KOEF!$C$7^3) -> 4.362548046e+13 | L154: 352382.8236 | M154: =L154*KOEF!$C$7 -> 352.3828236 | N154: =L154^2*(KOEF!$C$7*(1-KOEF!$C$7)) -> 124049480.7 | O154: =L154^3*(KOEF!$C$7-3*KOEF!$C$7^2+2*KOEF!$C$7^3) -> 4.362548046e+13 | R154: =D154*KOEF!$C$7/KOEF!$C$6 -> 1174.609412 | S154: =D154*KOEF!$L$28 -> 528.5742354 | U154: 0 | V154: 0
D155: 519344.0978 | H155: =D155*KOEF!$C$7 -> 519.3440978 | I155: =D155^2*(KOEF!$C$7*(1-KOEF!$C$7)) -> 269448573.6 | J155: =D155^3*(KOEF!$C$7-3*KOEF!$C$7^2+2*KOEF!$C$7^3) -> 1.396566533e+14 | L155: 519344.0978 | M155: =L155*KOEF!$C$7 -> 519.3440978 | N155: =L155^2*(KOEF!$C$7*(1-KOEF!$C$7)) -> 269448573.6 | O155: =L155^3*(KOEF!$C$7-3*KOEF!$C$7^2+2*KOEF!$C$7^3) -> 1.396566533e+14 | R155: =D155*KOEF!$C$7/KOEF!$C$6 -> 1731.146993 | S155: =D155*KOEF!$L$28 -> 779.0161467 | U155: 0 | V155: 0
D156: 147488.474 | H156: =D156*KOEF!$C$7 -> 147.488474 | I156: =D156^2*(KOEF!$C$7*(1-KOEF!$C$7)) -> 21731097.11 | J156: =D156^3*(KOEF!$C$7-3*KOEF!$C$7^2+2*KOEF!$C$7^3) -> 3.198676177e+12 | L156: 147488.474 | M156: =L156*KOEF!$C$7 -> 147.488474 | N156: =L156^2*(KOEF!$C$7*(1-KOEF!$C$7)) -> 21731097.11 | O156: =L156^3*(KOEF!$C$7-3*KOEF!$C$7^2+2*KOEF!$C$7^3) -> 3.198676177e+12 | R156: =D156*KOEF!$C$7/KOEF!$C$6 -> 491.6282466 | S156: =D156*KOEF!$L$28 -> 221.232711 | U156: 0 | V156: 0
D157: 284703.9031 | H157: =D157*KOEF!$C$7 -> 284.7039031 | I157: =D157^2*(KOEF!$C$7*(1-KOEF!$C$7)) -> 80975256.11 | J157: =D157^3*(KOEF!$C$7-3*KOEF!$C$7^2+2*KOEF!$C$7^3) -> 2.300786352e+13 | L157: 284703.9031 | M157: =L157*KOEF!$C$7 -> 284.7039031 | N157: =L157^2*(KOEF!$C$7*(1-KOEF!$C$7)) -> 80975256.11 | O157: =L157^3*(KOEF!$C$7-3*KOEF!$C$7^2+2*KOEF!$C$7^3) -> 2.300786352e+13 | R157: =D157*KOEF!$C$7/KOEF!$C$6 -> 949.0130102 | S157: =D157*KOEF!$L$28 -> 427.0558546 | U157: 0 | V157: 0
D158: 598218.4198 | H158: =D158*KOEF!$C$7 -> 598.2184198 | I158: =D158^2*(KOEF!$C$7*(1-KOEF!$C$7)) -> 357507412.6 | J158: =D158^3*(KOEF!$C$7-3*KOEF!$C$7^2+2*KOEF!$C$7^3) -> 2.134397844e+14 | L158: 598218.4198 | M158: =L158*KOEF!$C$7 -> 598.2184198 | N158: =L158^2*(KOEF!$C$7*(1-KOEF!$C$7)) -> 357507412.6 | O158: =L158^3*(KOEF!$C$7-3*KOEF!$C$7^2+2*KOEF!$C$7^3) -> 2.134397844e+14 | R158: =D158*KOEF!$C$7/KOEF!$C$6 -> 1994.061399 | S158: =D158*KOEF!$L$28 -> 897.3276298 | U158: 0 | V158: 0
D159: 273986.9251 | H159: =D159*KOEF!$C$7 -> 273.9869251 | I159: =D159^2*(KOEF!$C$7*(1-KOEF!$C$7)) -> 74993766.31 | J159: =D159^3*(KOEF!$C$7-3*KOEF!$C$7^2+2*KOEF!$C$7^3) -> 2.050621681e+13 | L159: 273986.9251 | M159: =L159*KOEF!$C$7 -> 273.9869251 | N159: =L159^2*(KOEF!$C$7*(1-KOEF!$C$7)) -> 74993766.31 | O159: =L159^3*(KOEF!$C$7-3*KOEF!$C$7^2+2*KOEF!$C$7^3) -> 2.050621681e+13 | R159: =D159*KOEF!$C$7/KOEF!$C$6 -> 913.2897505 | S159: =D159*KOEF!$L$28 -> 410.9803877 | U159: 0 | V159: 0
D160: 115752.8683 | H160: =D160*KOEF!$C$7 -> 115.7528683 | I160: =D160^2*(KOEF!$C$7*(1-KOEF!$C$7)) -> 13385327.8 | J160: =D160^3*(KOEF!$C$7-3*KOEF!$C$7^2+2*KOEF!$C$7^3) -> 1.546291306e+12 | L160: 115752.8683 | M160: =L160*KOEF!$C$7 -> 115.7528683 | N160: =L160^2*(KOEF!$C$7*(1-KOEF!$C$7)) -> 13385327.8 | O160: =L160^3*(KOEF!$C$7-3*KOEF!$C$7^2+2*KOEF!$C$7^3) -> 1.546291306e+12 | R160: =D160*KOEF!$C$7/KOEF!$C$6 -> 385.8428944 | S160: =D160*KOEF!$L$28 -> 173.6293025 | U160: 0 | V160: 0
D161: 123981.2661 | H161: =D161*KOEF!$C$7 -> 123.9812661 | I161: =D161^2*(KOEF!$C$7*(1-KOEF!$C$7)) -> 15355983 | J161: =D161^3*(KOEF!$C$7-3*KOEF!$C$7^2+2*KOEF!$C$7^3) -> 1.900046506e+12 | L161: 123981.2661 | M161: =L161*KOEF!$C$7 -> 123.9812661 | N161: =L161^2*(KOEF!$C$7*(1-KOEF!$C$7)) -> 15355983 | O161: =L161^3*(KOEF!$C$7-3*KOEF!$C$7^2+2*KOEF!$C$7^3) -> 1.900046506e+12 | R161: =D161*KOEF!$C$7/KOEF!$C$6 -> 413.2708871 | S161: =D161*KOEF!$L$28 -> 185.9718992 | U161: 0 | V161: 0
D162: 641793.527 | H162: =D162*KOEF!$C$7 -> 641.793527 | I162: =D162^2*(KOEF!$C$7*(1-KOEF!$C$7)) -> 411487032.4 | J162: =D162^3*(KOEF!$C$7-3*KOEF!$C$7^2+2*KOEF!$C$7^3) -> 2.635615344e+14 | L162: 641793.527 | M162: =L162*KOEF!$C$7 -> 641.793527 | N162: =L162^2*(KOEF!$C$7*(1-KOEF!$C$7)) -> 411487032.4 | O162: =L162^3*(KOEF!$C$7-3*KOEF!$C$7^2+2*KOEF!$C$7^3) -> 2.635615344e+14 | R162: =D162*KOEF!$C$7/KOEF!$C$6 -> 2139.311757 | S162: =D162*KOEF!$L$28 -> 962.6902905 | U162: 0 | V162: 0
D163: 156116.1071 | H163: =D163*KOEF!$C$7 -> 156.1161071 | I163: =D163^2*(KOEF!$C$7*(1-KOEF!$C$7)) -> 24347866.66 | J163: =D163^3*(KOEF!$C$7-3*KOEF!$C$7^2+2*KOEF!$C$7^3) -> 3.793491972e+12 | L163: 156116.1071 | M163: =L163*KOEF!$C$7 -> 156.1161071 | N163: =L163^2*(KOEF!$C$7*(1-KOEF!$C$7)) -> 24347866.66 | O163: =L163^3*(KOEF!$C$7-3*KOEF!$C$7^2+2*KOEF!$C$7^3) -> 3.793491972e+12 | R163: =D163*KOEF!$C$7/KOEF!$C$6 -> 520.3870237 | S163: =D163*KOEF!$L$28 -> 234.1741607 | U163: 0 | V163: 0
D164: 250280.8226 | H164: =D164*KOEF!$C$7 -> 250.2808226 | I164: =D164^2*(KOEF!$C$7*(1-KOEF!$C$7)) -> 62577849.66 | J164: =D164^3*(KOEF!$C$7-3*KOEF!$C$7^2+2*KOEF!$C$7^3) -> 1.563071162e+13 | L164: 250280.8226 | M164: =L164*KOEF!$C$7 -> 250.2808226 | N164: =L164^2*(KOEF!$C$7*(1-KOEF!$C$7)) -> 62577849.66 | O164: =L164^3*(KOEF!$C$7-3*KOEF!$C$7^2+2*KOEF!$C$7^3) -> 1.563071162e+13 | R164: =D164*KOEF!$C$7/KOEF!$C$6 -> 834.2694086 | S164: =D164*KOEF!$L$28 -> 375.4212339 | U164: 0 | V164: 0
D165: 339713.2441 | H165: =D165*KOEF!$C$7 -> 339.7132441 | I165: =D165^2*(KOEF!$C$7*(1-KOEF!$C$7)) -> 115289683.1 | J165: =D165^3*(KOEF!$C$7-3*KOEF!$C$7^2+2*KOEF!$C$7^3) -> 3.908710141e+13 | L165: 339713.2441 | M165: =L165*KOEF!$C$7 -> 339.7132441 | N165: =L165^2*(KOEF!$C$7*(1-KOEF!$C$7)) -> 115289683.1 | O165: =L165^3*(KOEF!$C$7-3*KOEF!$C$7^2+2*KOEF!$C$7^3) -> 3.908710141e+13 | R165: =D165*KOEF!$C$7/KOEF!$C$6 -> 1132.37748 | S165: =D165*KOEF!$L$28 -> 509.5698662 | U165: 0 | V165: 0
D166: 113138.3997 | H166: =D166*KOEF!$C$7 -> 113.1383997 | I166: =D166^2*(KOEF!$C$7*(1-KOEF!$C$7)) -> 12787497.18 | J166: =D166^3*(KOEF!$C$7-3*KOEF!$C$7^2+2*KOEF!$C$7^3) -> 1.443863452e+12 | L166: 113138.3997 | M166: =L166*KOEF!$C$7 -> 113.1383997 | N166: =L166^2*(KOEF!$C$7*(1-KOEF!$C$7)) -> 12787497.18 | O166: =L166^3*(KOEF!$C$7-3*KOEF!$C$7^2+2*KOEF!$C$7^3) -> 1.443863452e+12 | R166: =D166*KOEF!$C$7/KOEF!$C$6 -> 377.1279988 | S166: =D166*KOEF!$L$28 -> 169.7075995 | U166: 0 | V166: 0
D167: 115483.61 | H167: =D167*KOEF!$C$7 -> 115.48361 | I167: =D167^2*(KOEF!$C$7*(1-KOEF!$C$7)) -> 13323127.71 | J167: =D167^3*(KOEF!$C$7-3*KOEF!$C$7^2+2*KOEF!$C$7^3) -> 1.535525678e+12 | L167: 115483.61 | M167: =L167*KOEF!$C$7 -> 115.48361 | N167: =L167^2*(KOEF!$C$7*(1-KOEF!$C$7)) -> 13323127.71 | O167: =L167^3*(KOEF!$C$7-3*KOEF!$C$7^2+2*KOEF!$C$7^3) -> 1.535525678e+12 | R167: =D167*KOEF!$C$7/KOEF!$C$6 -> 384.9453666 | S167: =D167*KOEF!$L$28 -> 173.225415 | U167: 0 | V167: 0
D168: 220202.602 | H168: =D168*KOEF!$C$7 -> 220.202602 | I168: =D168^2*(KOEF!$C$7*(1-KOEF!$C$7)) -> 48440696.75 | J168: =D168^3*(KOEF!$C$7-3*KOEF!$C$7^2+2*KOEF!$C$7^3) -> 1.064543393e+13 | L168: 220202.602 | M168: =L168*KOEF!$C$7 -> 220.202602 | N168: =L168^2*(KOEF!$C$7*(1-KOEF!$C$7)) -> 48440696.75 | O168: =L168^3*(KOEF!$C$7-3*KOEF!$C$7^2+2*KOEF!$C$7^3) -> 1.064543393e+13 | R168: =D168*KOEF!$C$7/KOEF!$C$6 -> 734.0086734 | S168: =D168*KOEF!$L$28 -> 330.303903 | U168: 0 | V168: 0
D169: 180558.0781 | H169: =D169*KOEF!$C$7 -> 180.5580781 | I169: =D169^2*(KOEF!$C$7*(1-KOEF!$C$7)) -> 32568618.36 | J169: =D169^3*(KOEF!$C$7-3*KOEF!$C$7^2+2*KOEF!$C$7^3) -> 5.868766085e+12 | L169: 180558.0781 | M169: =L169*KOEF!$C$7 -> 180.5580781 | N169: =L169^2*(KOEF!$C$7*(1-KOEF!$C$7)) -> 32568618.36 | O169: =L169^3*(KOEF!$C$7-3*KOEF!$C$7^2+2*KOEF!$C$7^3) -> 5.868766085e+12 | R169: =D169*KOEF!$C$7/KOEF!$C$6 -> 601.8602605 | S169: =D169*KOEF!$L$28 -> 270.8371172 | U169: 0 | V169: 0
D170: 314224.7018 | H170: =D170*KOEF!$C$7 -> 314.2247018 | I170: =D170^2*(KOEF!$C$7*(1-KOEF!$C$7)) -> 98638426.09 | J170: =D170^3*(KOEF!$C$7-3*KOEF!$C$7^2+2*KOEF!$C$7^3) -> 3.093264077e+13 | L170: 314224.7018 | M170: =L170*KOEF!$C$7 -> 314.2247018 | N170: =L170^2*(KOEF!$C$7*(1-KOEF!$C$7)) -> 98638426.09 | O170: =L170^3*(KOEF!$C$7-3*KOEF!$C$7^2+2*KOEF!$C$7^3) -> 3.093264077e+13 | R170: =D170*KOEF!$C$7/KOEF!$C$6 -> 1047.415673 | S170: =D170*KOEF!$L$28 -> 471.3370528 | U170: 0 | V170: 0
D171: 138249.6028 | H171: =D171*KOEF!$C$7 -> 138.2496028 | I171: =D171^2*(KOEF!$C$7*(1-KOEF!$C$7)) -> 19093839.71 | J171: =D171^3*(KOEF!$C$7-3*KOEF!$C$7^2+2*KOEF!$C$7^3) -> 2.634436324e+12 | L171: 138249.6028 | M171: =L171*KOEF!$C$7 -> 138.2496028 | N171: =L171^2*(KOEF!$C$7*(1-KOEF!$C$7)) -> 19093839.71 | O171: =L171^3*(KOEF!$C$7-3*KOEF!$C$7^2+2*KOEF!$C$7^3) -> 2.634436324e+12 | R171: =D171*KOEF!$C$7/KOEF!$C$6 -> 460.8320092 | S171: =D171*KOEF!$L$28 -> 207.3744042 | U171: 0 | V171: 0
D172: 115903.9688 | H172: =D172*KOEF!$C$7 -> 115.9039688 | I172: =D172^2*(KOEF!$C$7*(1-KOEF!$C$7)) -> 13420296.24 | J172: =D172^3*(KOEF!$C$7-3*KOEF!$C$7^2+2*KOEF!$C$7^3) -> 1.552354665e+12 | L172: 115903.9688 | M172: =L172*KOEF!$C$7 -> 115.9039688 | N172: =L172^2*(KOEF!$C$7*(1-KOEF!$C$7)) -> 13420296.24 | O172: =L172^3*(KOEF!$C$7-3*KOEF!$C$7^2+2*KOEF!$C$7^3) -> 1.552354665e+12 | R172: =D172*KOEF!$C$7/KOEF!$C$6 -> 386.3465625 | S172: =D172*KOEF!$L$28 -> 173.8559531 | U172: 0 | V172: 0
D173: 191610.7907 | H173: =D173*KOEF!$C$7 -> 191.6107907 | I173: =D173^2*(KOEF!$C$7*(1-KOEF!$C$7)) -> 36677980.42 | J173: =D173^3*(KOEF!$C$7-3*KOEF!$C$7^2+2*KOEF!$C$7^3) -> 7.013841037e+12 | L173: 191610.7907 | M173: =L173*KOEF!$C$7 -> 191.6107907 | N173: =L173^2*(KOEF!$C$7*(1-KOEF!$C$7)) -> 36677980.42 | O173: =L173^3*(KOEF!$C$7-3*KOEF!$C$7^2+2*KOEF!$C$7^3) -> 7.013841037e+12 | R173: =D173*KOEF!$C$7/KOEF!$C$6 -> 638.7026357 | S173: =D173*KOEF!$L$28 -> 287.4161861 | U173: 0 | V173: 0
D174: 117917.5105 | H174: =D174*KOEF!$C$7 -> 117.9175105 | I174: =D174^2*(KOEF!$C$7*(1-KOEF!$C$7)) -> 13890634.74 | J174: =D174^3*(KOEF!$C$7-3*KOEF!$C$7^2+2*KOEF!$C$7^3) -> 1.634673169e+12 | L174: 117917.5105 | M174: =L174*KOEF!$C$7 -> 117.9175105 | N174: =L174^2*(KOEF!$C$7*(1-KOEF!$C$7)) -> 13890634.74 | O174: =L174^3*(KOEF!$C$7-3*KOEF!$C$7^2+2*KOEF!$C$7^3) -> 1.634673169e+12 | R174: =D174*KOEF!$C$7/KOEF!$C$6 -> 393.0583683 | S174: =D174*KOEF!$L$28 -> 176.8762657 | U174: 0 | V174: 0
D175: 118085.5618 | H175: =D175*KOEF!$C$7 -> 118.0855618 | I175: =D175^2*(KOEF!$C$7*(1-KOEF!$C$7)) -> 13930255.7 | J175: =D175^3*(KOEF!$C$7-3*KOEF!$C$7^2+2*KOEF!$C$7^3) -> 1.641672146e+12 | L175: 118085.5618 | M175: =L175*KOEF!$C$7 -> 118.0855618 | N175: =L175^2*(KOEF!$C$7*(1-KOEF!$C$7)) -> 13930255.7 | O175: =L175^3*(KOEF!$C$7-3*KOEF!$C$7^2+2*KOEF!$C$7^3) -> 1.641672146e+12 | R175: =D175*KOEF!$C$7/KOEF!$C$6 -> 393.6185393 | S175: =D175*KOEF!$L$28 -> 177.1283427 | U175: 0 | V175: 0
D176: 140617.7327 | H176: =D176*KOEF!$C$7 -> 140.6177327 | I176: =D176^2*(KOEF!$C$7*(1-KOEF!$C$7)) -> 19753573.41 | J176: =D176^3*(KOEF!$C$7-3*KOEF!$C$7^2+2*KOEF!$C$7^3) -> 2.7721473e+12 | L176: 140617.7327 | M176: =L176*KOEF!$C$7 -> 140.6177327 | N176: =L176^2*(KOEF!$C$7*(1-KOEF!$C$7)) -> 19753573.41 | O176: =L176^3*(KOEF!$C$7-3*KOEF!$C$7^2+2*KOEF!$C$7^3) -> 2.7721473e+12 | R176: =D176*KOEF!$C$7/KOEF!$C$6 -> 468.7257757 | S176: =D176*KOEF!$L$28 -> 210.9265991 | U176: 0 | V176: 0
D177: 166585.6505 | H177: =D177*KOEF!$C$7 -> 166.5856505 | I177: =D177^2*(KOEF!$C$7*(1-KOEF!$C$7)) -> 27723028.18 | J177: =D177^3*(KOEF!$C$7-3*KOEF!$C$7^2+2*KOEF!$C$7^3) -> 4.609022167e+12 | L177: 166585.6505 | M177: =L177*KOEF!$C$7 -> 166.5856505 | N177: =L177^2*(KOEF!$C$7*(1-KOEF!$C$7)) -> 27723028.18 | O177: =L177^3*(KOEF!$C$7-3*KOEF!$C$7^2+2*KOEF!$C$7^3) -> 4.609022167e+12 | R177: =D177*KOEF!$C$7/KOEF!$C$6 -> 555.2855017 | S177: =D177*KOEF!$L$28 -> 249.8784758 | U177: 0 | V177: 0
D178: 148701.288 | H178: =D178*KOEF!$C$7 -> 148.701288 | I178: =D178^2*(KOEF!$C$7*(1-KOEF!$C$7)) -> 22089960.97 | J178: =D178^3*(KOEF!$C$7-3*KOEF!$C$7^2+2*KOEF!$C$7^3) -> 3.278236036e+12 | L178: 148701.288 | M178: =L178*KOEF!$C$7 -> 148.701288 | N178: =L178^2*(KOEF!$C$7*(1-KOEF!$C$7)) -> 22089960.97 | O178: =L178^3*(KOEF!$C$7-3*KOEF!$C$7^2+2*KOEF!$C$7^3) -> 3.278236036e+12 | R178: =D178*KOEF!$C$7/KOEF!$C$6 -> 495.6709599 | S178: =D178*KOEF!$L$28 -> 223.0519319 | U178: 0 | V178: 0
D179: 286834.8949 | H179: =D179*KOEF!$C$7 -> 286.8348949 | I179: =D179^2*(KOEF!$C$7*(1-KOEF!$C$7)) -> 82191982.7 | J179: =D179^3*(KOEF!$C$7-3*KOEF!$C$7^2+2*KOEF!$C$7^3) -> 2.352837767e+13 | L179: 286834.8949 | M179: =L179*KOEF!$C$7 -> 286.8348949 | N179: =L179^2*(KOEF!$C$7*(1-KOEF!$C$7)) -> 82191982.7 | O179: =L179^3*(KOEF!$C$7-3*KOEF!$C$7^2+2*KOEF!$C$7^3) -> 2.352837767e+13 | R179: =D179*KOEF!$C$7/KOEF!$C$6 -> 956.1163165 | S179: =D179*KOEF!$L$28 -> 430.2523424 | U179: 0 | V179: 0
D180: 141009.4174 | H180: =D180*KOEF!$C$7 -> 141.0094174 | I180: =D180^2*(KOEF!$C$7*(1-KOEF!$C$7)) -> 19863772.15 | J180: =D180^3*(KOEF!$C$7-3*KOEF!$C$7^2+2*KOEF!$C$7^3) -> 2.795376981e+12 | L180: 141009.4174 | M180: =L180*KOEF!$C$7 -> 141.0094174 | N180: =L180^2*(KOEF!$C$7*(1-KOEF!$C$7)) -> 19863772.15 | O180: =L180^3*(KOEF!$C$7-3*KOEF!$C$7^2+2*KOEF!$C$7^3) -> 2.795376981e+12 | R180: =D180*KOEF!$C$7/KOEF!$C$6 -> 470.0313915 | S180: =D180*KOEF!$L$28 -> 211.5141262 | U180: 0 | V180: 0
D181: 2066123.161 | H181: =D181*KOEF!$C$7 -> 2066.123161 | I181: =D181^2*(KOEF!$C$7*(1-KOEF!$C$7)) -> 4264596050 | J181: =D181^3*(KOEF!$C$7-3*KOEF!$C$7^2+2*KOEF!$C$7^3) -> 8793558309521271 | L181: 2066123.161 | M181: =L181*KOEF!$C$7 -> 2066.123161 | N181: =L181^2*(KOEF!$C$7*(1-KOEF!$C$7)) -> 4264596050 | O181: =L181^3*(KOEF!$C$7-3*KOEF!$C$7^2+2*KOEF!$C$7^3) -> 8793558309521271 | R181: =D181*KOEF!$C$7/KOEF!$C$6 -> 6887.077202 | S181: =D181*KOEF!$L$28 -> 3099.184741 | U181: 0 | V181: 0
D182: 402376.5023 | H182: =D182*KOEF!$C$7 -> 402.3765023 | I182: =D182^2*(KOEF!$C$7*(1-KOEF!$C$7)) -> 161744942.8 | J182: =D182^3*(KOEF!$C$7-3*KOEF!$C$7^2+2*KOEF!$C$7^3) -> 6.495219962e+13 | L182: 402376.5023 | M182: =L182*KOEF!$C$7 -> 402.3765023 | N182: =L182^2*(KOEF!$C$7*(1-KOEF!$C$7)) -> 161744942.8 | O182: =L182^3*(KOEF!$C$7-3*KOEF!$C$7^2+2*KOEF!$C$7^3) -> 6.495219962e+13 | R182: =D182*KOEF!$C$7/KOEF!$C$6 -> 1341.255008 | S182: =D182*KOEF!$L$28 -> 603.5647535 | U182: 0 | V182: 0
D183: 312936.1423 | H183: =D183*KOEF!$C$7 -> 312.9361423 | I183: =D183^2*(KOEF!$C$7*(1-KOEF!$C$7)) -> 97831100.12 | J183: =D183^3*(KOEF!$C$7-3*KOEF!$C$7^2+2*KOEF!$C$7^3) -> 3.055365729e+13 | L183: 312936.1423 | M183: =L183*KOEF!$C$7 -> 312.9361423 | N183: =L183^2*(KOEF!$C$7*(1-KOEF!$C$7)) -> 97831100.12 | O183: =L183^3*(KOEF!$C$7-3*KOEF!$C$7^2+2*KOEF!$C$7^3) -> 3.055365729e+13 | R183: =D183*KOEF!$C$7/KOEF!$C$6 -> 1043.120474 | S183: =D183*KOEF!$L$28 -> 469.4042134 | U183: 0 | V183: 0
D184: 329999.3391 | H184: =D184*KOEF!$C$7 -> 329.9993391 | I184: =D184^2*(KOEF!$C$7*(1-KOEF!$C$7)) -> 108790664.3 | J184: =D184^3*(KOEF!$C$7-3*KOEF!$C$7^2+2*KOEF!$C$7^3) -> 3.582904561e+13 | L184: 329999.3391 | M184: =L184*KOEF!$C$7 -> 329.9993391 | N184: =L184^2*(KOEF!$C$7*(1-KOEF!$C$7)) -> 108790664.3 | O184: =L184^3*(KOEF!$C$7-3*KOEF!$C$7^2+2*KOEF!$C$7^3) -> 3.582904561e+13 | R184: =D184*KOEF!$C$7/KOEF!$C$6 -> 1099.997797 | S184: =D184*KOEF!$L$28 -> 494.9990087 | U184: 0 | V184: 0
D185: 512114.0856 | H185: =D185*KOEF!$C$7 -> 512.1140856 | I185: =D185^2*(KOEF!$C$7*(1-KOEF!$C$7)) -> 261998575.8 | J185: =D185^3*(KOEF!$C$7-3*KOEF!$C$7^2+2*KOEF!$C$7^3) -> 1.339048148e+14 | L185: 512114.0856 | M185: =L185*KOEF!$C$7 -> 512.1140856 | N185: =L185^2*(KOEF!$C$7*(1-KOEF!$C$7)) -> 261998575.8 | O185: =L185^3*(KOEF!$C$7-3*KOEF!$C$7^2+2*KOEF!$C$7^3) -> 1.339048148e+14 | R185: =D185*KOEF!$C$7/KOEF!$C$6 -> 1707.046952 | S185: =D185*KOEF!$L$28 -> 768.1711284 | U185: 0 | V185: 0
D186: 275041.5151 | H186: =D186*KOEF!$C$7 -> 275.0415151 | I186: =D186^2*(KOEF!$C$7*(1-KOEF!$C$7)) -> 75572187.18 | J186: =D186^3*(KOEF!$C$7-3*KOEF!$C$7^2+2*KOEF!$C$7^3) -> 2.074391788e+13 | L186: 275041.5151 | M186: =L186*KOEF!$C$7 -> 275.0415151 | N186: =L186^2*(KOEF!$C$7*(1-KOEF!$C$7)) -> 75572187.18 | O186: =L186^3*(KOEF!$C$7-3*KOEF!$C$7^2+2*KOEF!$C$7^3) -> 2.074391788e+13 | R186: =D186*KOEF!$C$7/KOEF!$C$6 -> 916.8050502 | S186: =D186*KOEF!$L$28 -> 412.5622726 | U186: 0 | V186: 0
D187: 486011.9956 | H187: =D187*KOEF!$C$7 -> 486.0119956 | I187: =D187^2*(KOEF!$C$7*(1-KOEF!$C$7)) -> 235971452.2 | J187: =D187^3*(KOEF!$C$7-3*KOEF!$C$7^2+2*KOEF!$C$7^3) -> 1.144555865e+14 | L187: 486011.9956 | M187: =L187*KOEF!$C$7 -> 486.0119956 | N187: =L187^2*(KOEF!$C$7*(1-KOEF!$C$7)) -> 235971452.2 | O187: =L187^3*(KOEF!$C$7-3*KOEF!$C$7^2+2*KOEF!$C$7^3) -> 1.144555865e+14 | R187: =D187*KOEF!$C$7/KOEF!$C$6 -> 1620.039985 | S187: =D187*KOEF!$L$28 -> 729.0179934 | U187: 0 | V187: 0
D188: 191247.4427 | H188: =D188*KOEF!$C$7 -> 191.2474427 | I188: =D188^2*(KOEF!$C$7*(1-KOEF!$C$7)) -> 36539008.75 | J188: =D188^3*(KOEF!$C$7-3*KOEF!$C$7^2+2*KOEF!$C$7^3) -> 6.974015998e+12 | L188: 191247.4427 | M188: =L188*KOEF!$C$7 -> 191.2474427 | N188: =L188^2*(KOEF!$C$7*(1-KOEF!$C$7)) -> 36539008.75 | O188: =L188^3*(KOEF!$C$7-3*KOEF!$C$7^2+2*KOEF!$C$7^3) -> 6.974015998e+12 | R188: =D188*KOEF!$C$7/KOEF!$C$6 -> 637.4914756 | S188: =D188*KOEF!$L$28 -> 286.871164 | U188: 0 | V188: 0
D189: 120760.8513 | H189: =D189*KOEF!$C$7 -> 120.7608513 | I189: =D189^2*(KOEF!$C$7*(1-KOEF!$C$7)) -> 14568600.03 | J189: =D189^3*(KOEF!$C$7-3*KOEF!$C$7^2+2*KOEF!$C$7^3) -> 1.755797908e+12 | L189: 120760.8513 | M189: =L189*KOEF!$C$7 -> 120.7608513 | N189: =L189^2*(KOEF!$C$7*(1-KOEF!$C$7)) -> 14568600.03 | O189: =L189^3*(KOEF!$C$7-3*KOEF!$C$7^2+2*KOEF!$C$7^3) -> 1.755797908e+12 | R189: =D189*KOEF!$C$7/KOEF!$C$6 -> 402.536171 | S189: =D189*KOEF!$L$28 -> 181.141277 | U189: 0 | V189: 0
D190: 135200.4266 | H190: =D190*KOEF!$C$7 -> 135.2004266 | I190: =D190^2*(KOEF!$C$7*(1-KOEF!$C$7)) -> 18260876.19 | J190: =D190^3*(KOEF!$C$7-3*KOEF!$C$7^2+2*KOEF!$C$7^3) -> 2.463940494e+12 | L190: 135200.4266 | M190: =L190*KOEF!$C$7 -> 135.2004266 | N190: =L190^2*(KOEF!$C$7*(1-KOEF!$C$7)) -> 18260876.19 | O190: =L190^3*(KOEF!$C$7-3*KOEF!$C$7^2+2*KOEF!$C$7^3) -> 2.463940494e+12 | R190: =D190*KOEF!$C$7/KOEF!$C$6 -> 450.6680886 | S190: =D190*KOEF!$L$28 -> 202.8006399 | U190: 0 | V190: 0
D191: 163707.7061 | H191: =D191*KOEF!$C$7 -> 163.7077061 | I191: =D191^2*(KOEF!$C$7*(1-KOEF!$C$7)) -> 26773412.83 | J191: =D191^3*(KOEF!$C$7-3*KOEF!$C$7^2+2*KOEF!$C$7^3) -> 4.374247972e+12 | L191: 163707.7061 | M191: =L191*KOEF!$C$7 -> 163.7077061 | N191: =L191^2*(KOEF!$C$7*(1-KOEF!$C$7)) -> 26773412.83 | O191: =L191^3*(KOEF!$C$7-3*KOEF!$C$7^2+2*KOEF!$C$7^3) -> 4.374247972e+12 | R191: =D191*KOEF!$C$7/KOEF!$C$6 -> 545.6923538 | S191: =D191*KOEF!$L$28 -> 245.5615592 | U191: 0 | V191: 0
D192: 197158.6348 | H192: =D192*KOEF!$C$7 -> 197.1586348 | I192: =D192^2*(KOEF!$C$7*(1-KOEF!$C$7)) -> 38832655.74 | J192: =D192^3*(KOEF!$C$7-3*KOEF!$C$7^2+2*KOEF!$C$7^3) -> 7.640881004e+12 | L192: 197158.6348 | M192: =L192*KOEF!$C$7 -> 197.1586348 | N192: =L192^2*(KOEF!$C$7*(1-KOEF!$C$7)) -> 38832655.74 | O192: =L192^3*(KOEF!$C$7-3*KOEF!$C$7^2+2*KOEF!$C$7^3) -> 7.640881004e+12 | R192: =D192*KOEF!$C$7/KOEF!$C$6 -> 657.1954493 | S192: =D192*KOEF!$L$28 -> 295.7379522 | U192: 0 | V192: 0
D193: 136686.6469 | H193: =D193*KOEF!$C$7 -> 136.6866469 | I193: =D193^2*(KOEF!$C$7*(1-KOEF!$C$7)) -> 18664556.2 | J193: =D193^3*(KOEF!$C$7-3*KOEF!$C$7^2+2*KOEF!$C$7^3) -> 2.546093212e+12 | L193: 136686.6469 | M193: =L193*KOEF!$C$7 -> 136.6866469 | N193: =L193^2*(KOEF!$C$7*(1-KOEF!$C$7)) -> 18664556.2 | O193: =L193^3*(KOEF!$C$7-3*KOEF!$C$7^2+2*KOEF!$C$7^3) -> 2.546093212e+12 | R193: =D193*KOEF!$C$7/KOEF!$C$6 -> 455.6221563 | S193: =D193*KOEF!$L$28 -> 205.0299704 | U193: 0 | V193: 0
D194: 208057.8007 | H194: =D194*KOEF!$C$7 -> 208.0578007 | I194: =D194^2*(KOEF!$C$7*(1-KOEF!$C$7)) -> 43244760.37 | J194: =D194^3*(KOEF!$C$7-3*KOEF!$C$7^2+2*KOEF!$C$7^3) -> 8.979414912e+12 | L194: 208057.8007 | M194: =L194*KOEF!$C$7 -> 208.0578007 | N194: =L194^2*(KOEF!$C$7*(1-KOEF!$C$7)) -> 43244760.37 | O194: =L194^3*(KOEF!$C$7-3*KOEF!$C$7^2+2*KOEF!$C$7^3) -> 8.979414912e+12 | R194: =D194*KOEF!$C$7/KOEF!$C$6 -> 693.5260022 | S194: =D194*KOEF!$L$28 -> 312.086701 | U194: 0 | V194: 0
D195: 151230.4495 | H195: =D195*KOEF!$C$7 -> 151.2304495 | I195: =D195^2*(KOEF!$C$7*(1-KOEF!$C$7)) -> 22847778.21 | J195: =D195^3*(KOEF!$C$7-3*KOEF!$C$7^2+2*KOEF!$C$7^3) -> 3.448369211e+12 | L195: 151230.4495 | M195: =L195*KOEF!$C$7 -> 151.2304495 | N195: =L195^2*(KOEF!$C$7*(1-KOEF!$C$7)) -> 22847778.21 | O195: =L195^3*(KOEF!$C$7-3*KOEF!$C$7^2+2*KOEF!$C$7^3) -> 3.448369211e+12 | R195: =D195*KOEF!$C$7/KOEF!$C$6 -> 504.1014984 | S195: =D195*KOEF!$L$28 -> 226.8456743 | U195: 0 | V195: 0
D196: 187780.7063 | H196: =D196*KOEF!$C$7 -> 187.7807063 | I196: =D196^2*(KOEF!$C$7*(1-KOEF!$C$7)) -> 35226332.07 | J196: =D196^3*(KOEF!$C$7-3*KOEF!$C$7^2+2*KOEF!$C$7^3) -> 6.601595867e+12 | L196: 187780.7063 | M196: =L196*KOEF!$C$7 -> 187.7807063 | N196: =L196^2*(KOEF!$C$7*(1-KOEF!$C$7)) -> 35226332.07 | O196: =L196^3*(KOEF!$C$7-3*KOEF!$C$7^2+2*KOEF!$C$7^3) -> 6.601595867e+12 | R196: =D196*KOEF!$C$7/KOEF!$C$6 -> 625.9356877 | S196: =D196*KOEF!$L$28 -> 281.6710595 | U196: 0 | V196: 0
D197: 103141.7417 | H197: =D197*KOEF!$C$7 -> 103.1417417 | I197: =D197^2*(KOEF!$C$7*(1-KOEF!$C$7)) -> 10627580.65 | J197: =D197^3*(KOEF!$C$7-3*KOEF!$C$7^2+2*KOEF!$C$7^3) -> 1.093954884e+12 | L197: 103141.7417 | M197: =L197*KOEF!$C$7 -> 103.1417417 | N197: =L197^2*(KOEF!$C$7*(1-KOEF!$C$7)) -> 10627580.65 | O197: =L197^3*(KOEF!$C$7-3*KOEF!$C$7^2+2*KOEF!$C$7^3) -> 1.093954884e+12 | R197: =D197*KOEF!$C$7/KOEF!$C$6 -> 343.8058055 | S197: =D197*KOEF!$L$28 -> 154.7126125 | U197: =R197*MAX((D197-$P$1),0)/D197 -> 0 | V197: =S197*MAX((D197-$P$1),0)/D197 -> 0
D198: 164661.9071 | H198: =D198*KOEF!$C$7 -> 164.6619071 | I198: =D198^2*(KOEF!$C$7*(1-KOEF!$C$7)) -> 27086430.09 | J198: =D198^3*(KOEF!$C$7-3*KOEF!$C$7^2+2*KOEF!$C$7^3) -> 4.451183028e+12 | L198: =MIN(D198,$P$1) -> 164661.9071 | M198: =L198*KOEF!$C$7 -> 164.6619071 | N198: =L198^2*(KOEF!$C$7*(1-KOEF!$C$7)) -> 27086430.09 | O198: =L198^3*(KOEF!$C$7-3*KOEF!$C$7^2+2*KOEF!$C$7^3) -> 4.451183028e+12 | R198: =D198*KOEF!$C$7/KOEF!$C$6 -> 548.8730235 | S198: =D198*KOEF!$L$28 -> 246.9928606 | U198: 0 | V198: 0
D199: 223463.9767 | H199: =D199*KOEF!$C$7 -> 223.4639767 | I199: =D199^2*(KOEF!$C$7*(1-KOEF!$C$7)) -> 49886212.73 | J199: =D199^3*(KOEF!$C$7-3*KOEF!$C$7^2+2*KOEF!$C$7^3) -> 1.112547594e+13 | L199: 223463.9767 | M199: =L199*KOEF!$C$7 -> 223.4639767 | N199: =L199^2*(KOEF!$C$7*(1-KOEF!$C$7)) -> 49886212.73 | O199: =L199^3*(KOEF!$C$7-3*KOEF!$C$7^2+2*KOEF!$C$7^3) -> 1.112547594e+13 | R199: =D199*KOEF!$C$7/KOEF!$C$6 -> 744.8799223 | S199: =D199*KOEF!$L$28 -> 335.195965 | U199: 0 | V199: 0
D200: 109128.0154 | H200: =D200*KOEF!$C$7 -> 109.1280154 | I200: =D200^2*(KOEF!$C$7*(1-KOEF!$C$7)) -> 11897014.82 | J200: =D200^3*(KOEF!$C$7-3*KOEF!$C$7^2+2*KOEF!$C$7^3) -> 1.295701021e+12 | L200: 109128.0154 | M200: =L200*KOEF!$C$7 -> 109.1280154 | N200: =L200^2*(KOEF!$C$7*(1-KOEF!$C$7)) -> 11897014.82 | O200: =L200^3*(KOEF!$C$7-3*KOEF!$C$7^2+2*KOEF!$C$7^3) -> 1.295701021e+12 | R200: =D200*KOEF!$C$7/KOEF!$C$6 -> 363.7600513 | S200: =D200*KOEF!$L$28 -> 163.6920231 | U200: 0 | V200: 0
... 4300 more rows

Sheet SIMpor
B1: Původní | C1: Původní simulovane | D1: MIN(14000000;(300000/(1-NÁHČÍSLO())^(0,5))-200000) | E1: MIN(14000000;(300000/(1-NÁHČÍSLO())^(0,5))-200000) | F1: MIN(14000000;(300000/(1-NÁHČÍSLO())^(0,3))-200000) | G1: MIN(14000000;(300000/(1-NÁHČÍSLO())^(0,3))-200000)
A2: SaR | B2: 18004092498 | C2: 1.814512614e+10 | D2: 2.587265408e+10 | E2: 2.588235936e+10 | F2: 1.506328296e+10 | G2: 1.501120814e+10
A3: u(gross) | B3: 11140455.02 | C3: 11090720.17 | D3: 21227818.62 | E3: 20973250.34 | F3: 7578817.588 | G3: 7097898.994
A4: u(net) | B4: 9512953.248 | C4: 9232330.065 | D4: 16277091.2 | E4: 16244078.92 | F4: 6816875.78 | G4: 6818318.301
A5: VV opt. | B5: 3300000 | C5: 3200000 | D5: 5600000 | E5: 5600000 | F5: 2400000 | G5: 2400000
A6: EVAb | B6: 48204759.34 | C6: 48727590.43 | D6: 63740692.54 | E6: 64042885.83 | F6: 42177396.57 | G6: 42513587.54
A7: EVAz | B7: 48254968.26 | C7: 48791787.62 | D7: 63865307.39 | E7: 64161838.96 | F7: 42210046.75 | G7: 42519381.57
A8: RIEVA | B8: 50208.91986 | C8: 64197.19023 | D8: 124614.8585 | E8: 118953.1339 | F8: 32650.17898 | G8: 5794.027323
A9: RE_profit | B9: 47441.18642 | C9: 47306.2159 | D9: 172428.7865 | E9: 164797.1514 | F9: 13066.32952 | G9: 10980.81426
